Cogmind - Beta 16 @@@ ROGUE MODE // 2025.12.30 @ 18:10:36 Player: Kathisto Result: Self-destructed Performance ------------- Evolutions (9) 4500 Regions Visited (33) 6600 Robots Destroyed (349) 1745 Value Destroyed (16448) 16448 Prototype IDs (108) 2160 Alien Tech Used (4) 800 Bonus (3018) 3018 TOTAL SCORE: 35271 Bonus ------- High Alert Combat Kills 652 Follower Combat Kills 2256 Entered Garrisons 200 Network Hubs Disabled 200 Registered with UFD 300 Met Optimus in HQ 500 Destroyed Z-Imprinter 1000 Met Warlord at Base 500 MAIN.C Attacked Warlord 500 Built Enhanced Grunts 300 Met R17 at Cetus 500 Used Core Reset Matrix 3000 Friendly Fire -6890 Cogmind --------- Core Integrity 361/1600 Matter 116/300 Energy 99/100 System Corruption 24% Temperature Cool (0) Movement Core (50) Location -1/Command Parts ------- > --- POWER (3) -------- (None) > --- PROPULSION (8) --- Advanced Medium Treads Heavy Siege Treads Improved Heavy Siege Treads Advanced Heavy Siege Treads > --- UTILITY (11) ----- (None) > --- WEAPON (3) ------- (None) > --- INVENTORY (5) ---- (None) Peak State ------------ > --- POWER ------------ Antimatter Reactor Quantum Reactor Light Quantum Reactor > --- PROPULSION ------- Biometal Leg Biometal Leg Biometal Leg Enhanced Biometal Leg Enhanced Biometal Leg Centrium Leg > --- UTILITY ---------- 2N-1CE's Frost Array High-capacity Storage Unit Experimental Signal Interpreter Advanced Targeting Computer Experimental Core Analyzer Heavy Regenerative Plating Phase Armor AEGIS Remote Shield System Mapper > --- WEAPON ----------- Matter Neutralizer Enhanced Nova Cannon Enhanced Nova Cannon > --- INVENTORY -------- Particle Reactor Myomer Leg Advanced VSS Leg Shield Leg Experimental Energy Well Advanced Matter Compressor Deep Structural Scanner Advanced Sensor Array Advanced Transmission Jammer Experimental Focal Shield Experimental Thermal Shield Advanced Force Field Long-range Tractor Beam Subatomic Replicator Enhanced Nova Cannon Enhanced Hardcell Cannon Compact Tesla Bomb Launcher Advanced Remote Datajack Sigix Broadsword [Rating: 213] Favorites ----------- Power Quantum Reactor Engine Cooled Ion Engine Power Core Light Fission Core Reactor Quantum Reactor Propulsion Carbon-fiber Leg Treads Biometal Medium Treads Leg Carbon-fiber Leg Hover Unit Improved Antigrav System Flight Unit Field Propulsion Drive Utility High-capacity Storage Unit Device Advanced Transmission Jammer Storage High-capacity Storage Unit Processor Core Analyzer Hackware System Mapper Protection Medium Regenerative Plating Artifact Phase Armor Weapon Railgun Energy Gun Medium Laser Energy Cannon Enhanced Nova Cannon Ballistic Gun Railgun Ballistic Cannon Enhanced Hardcell Cannon Launcher Compact Tesla Bomb Launcher Special Weapon Plasma Cutter Slashing Weapon Sigix Broadsword Build | -11 -10 -10 -9 -9 -9 -8 -8 -8 -8 -8 -8 -6 -6 -6 -6 -6 -5 -5 -5 -5 -5 -5 -4 -4 -4 -3 -3 -3 -2 -2 -2 -1 -1 ------- Run | Yrd Mat Min Mat Min Exi Min Mat Sto Gar Rec Scr Fac Low Low Zio Dee Pro Fac Ext Cet Arc Hub Fac Upp War Pro Res Tes Res Qua Frg Acc Com Slots Evolved 18 | . . . 2 . . . 2 . . . . 4 . . . . . 2 . . . . 2 . . . 2 . 2 . . 2 . Power 2 | . . . . . . . . . . . . . . . . . . 1 . . . . . . . . 1 . . . . . . Propulsion 6 | . . . 1 . . . 1 . . . . 1 . . . . . . . . . . 1 . . . . . . . . 2 . Utility 9 | . . . . . . . 1 . . . . 3 . . . . . 1 . . . . 1 . . . 1 . 2 . . . . Weapon 1 | . . . 1 . . . . . . . . . . . . . . . . . . . . . . . . . . . . . . Parts Attached 308 | 7 4 1 29 6 . 8 9 22 11 2 8 9 2 . 2 11 7 7 8 9 4 4 5 . 8 5 16 11 12 26 8 32 15 Power 29 | 1 . . 2 1 . 1 . 2 . . 1 1 . . . 1 . 1 1 4 . . . . . . 1 1 3 4 . 2 2 Engine 7 | 1 . . 2 1 . . . 1 . . 1 . . . . . . . . . . . . . . . . . . . . 1 . Core 4 | . . . . . . 1 . 1 . . . 1 . . . . . . 1 . . . . . . . . . . . . . . Reactor 18 | . . . . . . . . . . . . . . . . 1 . 1 . 4 . . . . . . 1 1 3 4 . 1 2 Propulsion 94 | 2 . . 13 2 . 3 3 8 4 . 2 1 . . . 2 4 . . . 1 4 . . 1 2 5 3 2 4 4 13 11 Treads 11 | . . . . . . . . . . . . . . . . . . . . . . . . . . . . . . . . 6 5 Leg 71 | 2 . . 13 2 . 3 3 8 4 . 2 1 . . . 2 4 . . . 1 4 . . 1 2 5 3 2 4 4 1 . Wheel . | . . . . . . . . . . . . . . . . . . . . . . . . . . . . . . . . . . Hover 5 | . . . . . . . . . . . . . . . . . . . . . . . . . . . . . . . . 5 . Flight 7 | . . . . . . . . . . . . . . . . . . . . . . . . . . . . . . . . 1 6 Utility 107 | 2 3 . 3 3 . 1 2 4 2 . 1 6 1 . 1 7 2 4 5 4 . . 4 . 5 . 7 6 3 13 2 14 2 Device 55 | 1 1 . 2 2 . . 1 1 . . . 4 1 . 1 4 1 1 1 2 . . 3 . 1 . 5 4 2 5 2 9 1 Storage 12 | 1 2 . 1 . . . . 1 1 . 1 . . . . 1 1 . . . . . . . . . . 1 . 2 . . . Processor 16 | . . . . 1 . . . . 1 . . 1 . . . 1 . . 1 . . . . . 2 . 2 . 1 3 . 3 . Hackware 9 | . . . . . . . . . . . . . . . . . . 3 . . . . 1 . 1 . . . . 1 . 2 1 Protection 14 | . . . . . . 1 1 2 . . . 1 . . . 1 . . 3 2 . . . . 1 . . 1 . 1 . . . Artifact 1 | . . . . . . . . . . . . . . . . . . . . . . . . . . . . . . 1 . . . Weapon 78 | 2 1 1 11 . . 3 4 8 5 2 4 1 1 . 1 1 1 2 2 1 3 . 1 . 2 3 3 1 4 5 2 3 . Energy Gun 3 | . 1 . . . . . . . . . . . . . . 1 . . . . . . . . 1 . . . . . . . . Energy Cannon 11 | . . . . . . . . . . . 1 1 1 . . . 1 . . . . . . . . . 2 . 2 3 . . . Ballistic Gun 48 | 2 . . 8 . . 3 3 6 5 2 3 . . . . . . 2 2 1 3 . 1 . . 2 1 . 1 1 2 . . Ballistic Cannon 5 | . . . 2 . . . . 1 . . . . . . . . . . . . . . . . . . . . 1 . . 1 . Launcher 8 | . . 1 1 . . . 1 . . . . . . . . . . . . . . . . . 1 1 . 1 . . . 2 . Special Weapon 2 | . . . . . . . . 1 . . . . . . 1 . . . . . . . . . . . . . . . . . . Impact Weapon . | . . . . . . . . . . . . . . . . . . . . . . . . . . . . . . . . . . Slashing Weapon 1 | . . . . . . . . . . . . . . . . . . . . . . . . . . . . . . 1 . . . Piercing Weapon . | . . . . . . . . . . . . . . . . . . . . . . . . . . . . . . . . . . Special Melee Weapon . | . . . . . . . . . . . . . . . . . . . . . . . . . . . . . . . . . . Unidentified Prototypes 49 | . . . 1 . . . . 3 . . . . . . 1 7 4 . . 4 . . . . 5 . 6 7 1 5 2 3 . Corrupted Parts 1 | . . . . . . . . . . . . . . . . . . . . . . . . . . . . . . 1 . . . System Corruption 4 | . . . . . . . . . . . . . . . . . . . . . . . . . . . . . . 4 . . . Parts Lost 58 | . . . 3 3 . 1 1 4 2 . . 1 . . . 1 . . 2 . . . . . . . 1 1 1 2 18 8 9 Power 9 | . . . 1 1 . . . 1 . . . . . . . . . . 1 . . . . . . . . . . . 3 1 1 Propulsion 23 | . . . 1 2 . . 1 2 1 . . 1 . . . 1 . . . . . . . . . . . . . . 4 4 6 Utility 21 | . . . . . . 1 . 1 1 . . . . . . . . . 1 . . . . . . . 1 . . 2 9 3 2 Weapon 5 | . . . 1 . . . . . . . . . . . . . . . . . . . . . . . . 1 1 . 2 . . Highest Loss Streak 10 | . . . 3 1 . 1 1 2 1 . . 1 . . . 1 . . 1 . . . . . . . 1 1 1 1 10 8 8 To Critical Strikes . | . . . . . . . . . . . . . . . . . . . . . . . . . . . . . . . . . . Average Backups 16 | . 7 9 13 13 15 13 14 14 14 15 17 18 18 19 18 18 18 18 18 19 20 20 19 19 18 18 19 18 18 19 16 2 2 Power . | . . . . . . . . . . . . . . . . . 1 . . . 1 1 1 1 1 1 . 1 1 1 1 . . Propulsion 2 | . . . 2 2 2 2 1 1 2 3 2 1 1 1 1 1 1 2 2 2 2 2 2 3 2 2 2 2 3 3 2 1 2 Utility 7 | . 3 4 5 5 5 4 6 6 5 5 8 8 10 11 12 12 12 12 11 11 11 11 10 10 10 10 10 11 8 7 4 . . Weapon 4 | . 3 5 5 5 8 5 5 5 6 6 5 5 5 5 4 4 3 4 4 5 6 5 5 5 5 5 5 4 4 4 5 1 . Tool/Special . | . . . . . . . . . . . . . . . . . . . . . . . . . . . . . . . . . . Unused Backups 50 | . 1 1 4 . . . 2 2 1 2 2 2 . . 3 1 1 . 3 3 . 1 1 . 1 . 2 3 1 2 7 4 . Power 2 | . . . . . . . . . . . . . . . . . . . . . . . . . . . . . . . 2 . . Propulsion 3 | . . . 2 . . . . . 1 . . . . . . . . . . . . . . . . . . . . . . . . Utility 21 | . 1 . . . . . 2 . . . 2 1 . . 2 1 1 . 1 2 . . . . 1 . 1 3 1 1 1 . . Weapon 22 | . . 1 2 . . . . 2 . 2 . 1 . . 1 . . . 2 1 . 1 1 . . . 1 . . 1 2 4 . Tool/Special 2 | . . . . . . . . . . . . . . . . . . . . . . . . . . . . . . . 2 . . Average Slot Usage (%) 93 | . 100 100 97 99 66 99 98 98 100 99 90 99 100 100 99 98 100 98 99 100 100 100 99 100 100 100 94 94 94 88 77 36 22 Engine 3 | . 14 14 10 11 11 3 . 4 9 9 9 1 . . . . . . . . . . . . . . . . . . . . . Core 1 | . . . . . . 7 9 4 . . . 4 6 6 6 1 . . 4 3 . . . . . . . . . . . . . Reactor 5 | . . . . . . . . . . . . . . . . 4 6 11 5 7 11 11 10 10 10 10 8 9 9 12 11 1 2 Leg 29 | . 28 28 31 32 33 33 35 35 36 36 36 33 33 33 33 31 33 29 29 29 29 29 31 31 31 31 28 28 26 22 18 2 . Device 13 | . 14 14 11 11 11 1 8 9 9 9 9 19 20 20 19 13 13 15 12 11 11 11 13 15 14 15 18 17 19 16 22 9 3 Storage 6 | . 14 14 11 11 11 11 9 9 9 9 9 6 6 6 6 6 6 5 5 5 5 5 5 5 5 5 4 4 4 4 3 . . Processor 9 | . . . . . . . . . 5 9 9 10 13 13 13 19 20 17 17 17 17 17 15 15 11 10 9 9 11 12 7 4 . Hackware 1 | . . . . . . . . . . . . . . . . . . . . . . . 1 . 3 5 4 4 4 4 . 4 1 Protection 3 | . . . . . . 9 9 8 2 . . 1 . . . . . . 3 5 5 5 5 5 5 5 4 4 4 4 3 . . Energy Cannon 1 | . . . . . . . . . . . . 3 6 6 4 . . 4 1 . . . . . 2 . 3 2 2 4 2 . . Ballistic Gun 14 | . 22 14 27 25 . 32 26 26 26 26 17 16 13 13 13 18 18 11 15 16 16 17 14 15 12 14 9 10 9 . . . . Peak Build Rating 213 | 7 8 8 20 18 9 22 35 39 34 35 39 52 53 52 59 67 77 101 108 112 116 117 127 127 138 139 172 175 191 213 209 127 61 Average Rating 95 | 6 7 7 15 16 9 18 31 34 32 34 35 50 52 52 51 59 62 93 104 110 112 115 126 127 131 132 151 167 184 205 185 86 42 On Entrance 72 | . 7 8 8 18 9 9 22 35 31 34 26 39 52 52 52 50 60 72 101 105 112 116 117 127 127 136 134 166 167 191 205 5 63 Avg Prop Armor Cover (%) 36 | . . . . . . . . . . . . . . . . . . . . . . . . . . . . . . . . 36 46 Naked Turns 49 | . . . . . . . . . . . . . . . . . . . . . . . . . . . . . . . 42 5 2 Heaviest Build 203 | 12 27 18 37 38 28 39 45 45 42 39 63 78 66 64 64 68 69 87 93 110 110 107 111 108 114 117 144 146 154 203 158 50 19 Greatest Support 178 | 20 20 20 30 30 30 35 47 60 57 57 57 67 65 65 65 88 119 119 119 119 132 136 164 164 166 166 170 170 169 178 176 76 44 Greatest Overweight (x) 5 | . 1 1 1 1 . 1 1 . . . 1 1 1 . . 1 . . . . . . . . . . . . . 1 2 5 . Average Overweight (x) . | . . . . . . 1 . . . . . . . . . . . . . . . . . . . . . . . . . . . Largest Inventory Capacity 20 | 8 15 10 15 15 15 15 15 15 15 15 20 20 20 20 20 20 20 20 20 20 20 20 20 20 20 20 20 20 20 20 20 5 5 Average Capacity 17 | 7 9 10 14 15 15 15 15 15 15 15 19 20 20 20 20 20 20 20 20 20 20 20 20 20 20 20 20 20 20 20 19 5 5 Most Carried 20 | 1 10 10 15 15 15 15 15 15 15 15 20 20 20 20 20 20 20 20 20 20 20 20 20 19 20 20 20 20 20 20 20 5 5 Average Carried 17 | . 7 9 13 13 15 13 14 14 14 14 17 19 19 20 19 19 19 19 19 19 20 19 19 19 19 19 19 19 19 19 17 4 4 Final Capacity 20 | 8 10 10 15 15 15 15 15 15 15 15 20 20 20 20 20 20 20 20 20 20 20 20 20 20 20 20 20 20 20 20 5 5 5 Final Carried 20 | 1 10 9 15 15 15 15 15 15 15 15 20 19 20 20 19 19 20 20 20 20 20 20 20 19 19 20 20 20 20 19 5 5 . Class Distribution -------------------- 43% | Scavenger-Gunner 10% | Mutant 8% | Commander-Gunner 7% | Scavenger-Tank 7% | Hacker-Mutant 6% | Gunner 4% | Hacker-Gunner Dominant Class ---------------- Mutant | -10/Materials Mutant | -10/Mines Scavenger-Gunner | -9/Materials Scavenger-Gunner | -9/Mines Scavenger-Mutant | -9/Exiles Scavenger-Tank | -8/Mines Scavenger-Tank | -8/Materials Tank | -8/Storage Scavenger-Gunner | -8/Garrison Scavenger-Gunner | -8/Recycling Gunner | -8/Scraptown Scavenger-Gunner | -6/Factory Scavenger-Gunner | -6/Lower Caves Scavenger-Gunner | -6/Lower Caves Scavenger-Gunner | -6/Zion Scavenger-Gunner | -6/Deep Caves Gunner | -5/Proximity Caves Scavenger-Gunner | -5/Factory Commander-Gunner | -5/Extension Commander-Gunner | -5/Cetus Commander-Gunner | -5/Archives Commander-Gunner | -5/Hub_04(d) Scavenger-Gunner | -4/Factory Scavenger-Gunner | -4/Upper Caves Scavenger-Gunner | -4/Warlord Scavenger-Gunner | -3/Proximity Caves Scavenger-Gunner | -3/Research Scavenger-Gunner | -3/Testing Scavenger-Gunner | -2/Research Hacker-Mutant | -2/Quarantine Infiltrator-Assassin | -2/Protoforge Mutant | -1/Access Sprinter | -1/Command Resources | -11 -10 -10 -9 -9 -9 -8 -8 -8 -8 -8 -8 -6 -6 -6 -6 -6 -5 -5 -5 -5 -5 -5 -4 -4 -4 -3 -3 -3 -2 -2 -2 -1 -1 ----------- Run | Yrd Mat Min Mat Min Exi Min Mat Sto Gar Rec Scr Fac Low Low Zio Dee Pro Fac Ext Cet Arc Hub Fac Upp War Pro Res Tes Res Qua Frg Acc Com Matter Collected 15245 | 366 395 106 857 253 . 389 629 1343 693 250 95 194 18 . 31 343 378 . 686 580 175 465 410 . 148 561 643 1120 868 1812 817 380 240 Remotely 480 | . . . . . . . . . . . . . . . . . . . . . . . 120 . . . . . . . 360 . . Salvage Created 16877 | 179 253 84 1430 138 . 500 895 1789 812 234 . 148 18 . . 115 302 . 1106 431 110 1399 547 . . 463 647 1261 780 1759 1005 472 . Parts 991 | 11 19 9 104 6 . 29 55 95 70 13 . 6 . . . 4 25 . 45 28 10 65 36 . . 21 26 54 52 112 76 20 . Haulers Intercepted 17 | . 2 . 4 . . . 5 1 . . . . . . . . . . . . . 3 1 . . . 1 . . . . . . Recyclers Shooed 13 | . . 1 . . . . 3 . . . . . . . . . . . . . . 1 1 . . . 1 3 1 1 . 1 . Parts Field Recycled . | . . . . . . . . . . . . . . . . . . . . . . . . . . . . . . . . . . Retrieved Matter . | . . . . . . . . . . . . . . . . . . . . . . . . . . . . . . . . . . Parts Self-Destructed 29 | . . . . . . . . . . . . . . . 4 . 7 . . . . . . . . 18 . . . . . . . Prevented . | . . . . . . . . . . . . . . . . . . . . . . . . . . . . . . . . . . Parts Restored . | . . . . . . . . . . . . . . . . . . . . . . . . . . . . . . . . . . Kills | -11 -10 -10 -9 -9 -9 -8 -8 -8 -8 -8 -8 -6 -6 -6 -6 -6 -5 -5 -5 -5 -5 -5 -4 -4 -4 -3 -3 -3 -2 -2 -2 -1 -1 ------- Run | Yrd Mat Min Mat Min Exi Min Mat Sto Gar Rec Scr Fac Low Low Zio Dee Pro Fac Ext Cet Arc Hub Fac Upp War Pro Res Tes Res Qua Frg Acc Com Combat Hostiles Destroyed 261 | . 6 7 28 9 . 12 11 32 26 6 . 2 . . . 4 4 . 14 3 . 4 6 . . 9 8 15 12 18 14 11 . Melee 1 | . . . . . . . . . . . . . . . . . . . . . . . . . . . . . . . 1 . . Guns 183 | . 6 5 22 4 . 12 7 31 12 6 . 2 . . . 1 3 . 14 3 . 2 5 . . 5 8 15 12 . 8 . . Cannons 17 | . . . 1 . . . . . . . . . . . . . . . . . . . . . . . . . . 6 2 8 . AOE 48 | . . 2 5 5 . . 4 1 14 . . . . . . 3 1 . . . . 2 1 . . 4 . . . 1 2 3 . Classes Destroyed 27 | 2 3 . 5 1 . 1 . 3 . 2 . . . . . 1 1 . . . . 2 . . . . 2 2 . 1 1 . . Worker 24 | . . . 5 . . . 3 2 . . . . . . . . . . . . . 8 2 . . . 1 . 1 1 1 . . Builder 14 | . . . 2 1 . . 1 . . . . . . . . . . . . . . 1 1 . . . . . 3 3 2 . . Tunneler 5 | 3 . . 1 . . . . . . . . . . . . . . . . . . . . . . . . . . . . 1 . Hauler 17 | . 2 . 4 . . . 5 1 . . . . . . . . . . . . . 3 1 . . . 1 . . . . . . Recycler 11 | 1 1 . 1 . . 1 2 1 . . . . . . . . . . . . . 1 1 . . . . 1 . . . 1 . Operator 4 | . . . . . . . . 1 . . . 1 . . . . . . 1 . . 1 . . . . . . . . . . . Drone 3 | . . . . . . . . . . . . . . . . . 2 . . . . . . . . . . . . . 1 . . Watcher 7 | . 1 . 1 . . . 2 . . . . . . . . . . . . 1 . . 2 . . . . . . . . . . Swarmer 52 | . 6 7 5 . . 6 4 . 8 . . . . . . . . . . . . . 3 . . 4 . . 4 . . 5 . Grunt 80 | . . . 16 3 . 4 4 16 9 1 . 2 . . . . 1 . 8 . . 2 . . . 4 . 7 . 2 . 1 . Brawler 3 | . . . . . . . . 2 . . . . . . . . . . . . . . . . . . . 1 . . . . . Duelist 4 | . . . 1 . . . . 2 . . . . . . . . . . . . . . . . . . . . . 1 . . . Protector 1 | . . . . . . . . 1 . . . . . . . . . . . . . . . . . . . . . . . . . Researcher 1 | . . . . . . . . . . . . . . . . . . . . . . . . . . . . 1 . . . . . Sentry 42 | . . . 6 . . . 2 11 8 3 . . . . . . 1 . 6 . . . . . . 1 1 . 2 . 1 . . Demolisher 1 | . . . . . . . . . . 1 . . . . . . . . . . . . . . . . . . . . . . . Specialist 3 | . . . . . . . . . . . . . . . . . . . . . . . . . . . . 3 . . . . . Hunter 16 | . . . . . . 2 1 . 1 . . . . . . . . . . . . 1 1 . . . 4 2 . 2 2 . . Programmer 28 | . . . . . . . . . . 1 . . . . . . . . . . . . 2 . . . . 2 6 4 8 5 . Heavy 1 | . . . . . . . . . . . . . . . . . . . . . . 1 . . . . . . . . . . . Cetus Guard 3 | . . . . . . . . . . . . . . . . . . . . 3 . . . . . . . . . . . . . Quarantine Guard 8 | . . . . . . . . . . . . . . . . . . . . . . . . . . . . . . 8 . . . Enhanced Grunt 5 | . . . . . . . . . . . . . . . . . 2 . . . 1 2 . . . . . . . . . . . Decapitator 2 | . . . . . . . . . . . . . . . . . . . . . . . . . . . . . . . 2 . . Striker 2 | . . . . . . . . . . . . . . . . . . . . . . . . . . . 2 . . . . . . Executioner 1 | . . . . . . . . . . . . . . . . . . . . . . . . . . . 1 . . . . . . Fortress 1 | . . . . . . . . . . . . . . . . . . . . . . . . . . . . . . 1 . . . Scrapoid 1 | . . . . . . . . . . . . . . . . . . . . . . 1 . . . . . . . . . . . Z-Light 3 | . . . . . . . . . . . . . . . . 3 . . . . . . . . . . . . . . . . . Assembled 7 | . . . . 6 . . . . . . . . . . . 1 . . . . . . . . . . . . . . . . . Thug 3 | . . . 1 . . . . . . . . . . . . . . . . 1 . 1 . . . . . . . . . . . Guerrilla 2 | . . . . . . . . . . . . . . . . . . . . . . 2 . . . . . . . . . . . Best Kill Streak 13 | 2 3 3 10 3 . 4 6 6 8 3 . 1 . . . 3 2 . 4 3 . 13 7 . . 4 4 13 7 6 10 9 . Combat Bots Only 13 | . 3 3 6 3 . 4 5 4 8 3 . 1 . . . 3 2 . 4 2 . 2 2 . . 4 4 13 5 4 9 8 . Max Kills in Single Turn 14 | 1 1 2 5 2 . 2 4 2 3 2 . 1 . . . 1 1 . 2 2 1 14 5 . . 4 1 3 2 2 2 3 . Gunslinging 1 | . . . 1 . . 1 . 1 . . . . . . . . . . 1 1 . . . . . . . 1 . . 1 . . Exploded 4 | . . 2 2 1 . . 4 1 3 . . . . . . 1 1 . . . . 2 1 . . 4 . . . 1 1 3 . Melee 1 | . . . . . . . . . . . . . . . . . . . . . . . . . . . . . . . 1 . . Uniques/NPCs Destroyed 2 | . . . . . . . . . . . . . . . . 1 . . . 1 . . . . . . . . . . . . . Z-Imprinter (-6/Deep Caves) A7 (-5/Cetus) Combat | -11 -10 -10 -9 -9 -9 -8 -8 -8 -8 -8 -8 -6 -6 -6 -6 -6 -5 -5 -5 -5 -5 -5 -4 -4 -4 -3 -3 -3 -2 -2 -2 -1 -1 -------- Run | Yrd Mat Min Mat Min Exi Min Mat Sto Gar Rec Scr Fac Low Low Zio Dee Pro Fac Ext Cet Arc Hub Fac Upp War Pro Res Tes Res Qua Frg Acc Com Hostile Shots Fired 2268 | . 29 30 109 21 . 54 42 113 88 10 . 50 . . . 25 20 . 52 17 8 25 41 . . 59 104 251 95 156 426 324 119 Missed 738 | . 6 5 38 3 . 14 13 31 34 3 . 16 . . . 6 5 . 22 9 1 3 15 . . 17 31 78 32 57 97 142 60 Hits 1530 | . 23 25 71 18 . 40 29 82 54 7 . 34 . . . 19 15 . 30 8 7 22 26 . . 42 73 173 63 99 329 182 59 Melee 19 | . . . 6 3 . . . 1 . . . . . . . . . . . . . . . . . . 2 . . . 7 . . Projectile 1511 | . 23 25 65 15 . 40 29 81 54 7 . 34 . . . 19 15 . 30 8 7 22 26 . . 42 71 173 63 99 322 182 59 AOE 97 | . . . . . . . . . . 2 . . . . . . . . . . . . . . . . . . . . 95 . . Critical Strikes 69 | . . 1 1 . . 2 1 7 . . . 2 . . . . . . 2 2 . . 2 . . 2 3 3 4 7 20 8 2 Part Disruptions 11 | . . . . . . . . . . . . . . . . . . . . . . . 1 . . . . . 3 . 7 . . Damage Taken 24933 | . 176 220 1029 329 . 539 439 1331 735 179 . 432 . . . 572 250 . 484 242 190 451 428 . . 597 1130 1268 749 1482 6138 4302 1241 Core 3455 | . 46 32 101 34 . 50 6 123 119 18 . 31 . . . 55 53 . 52 . . . 13 . . 21 219 56 36 131 1020 887 352 Absorbed by Shields 5771 | . . . . . . . . . 42 . . 130 . . . 72 62 . 127 . . . . . . 217 640 666 735 1302 1778 . . Reduced by Siege Mode 25 | . . . . . . . . . . . . . . . . . . . . . . . . . . . . . . . . 25 . Ignored by Resistances 1450 | . . . . . . . . . . . . . . . . . . . 24 . . . . . . 150 179 731 . 145 221 . . Regen/Repaired (Parts) 3841 | . . . . . . . . 124 . . . . . . 594 . . . . 223 28 130 105 . 39 62 102 268 249 1146 771 . . Core Remaining (%) 71 | 100 . 68 . . . 53 . . . . 51 . . . . . 83 . . . . 94 . . . 97 . 78 . . 18 . . Volleys Fired 1246 | 24 43 14 87 21 . 32 48 100 58 7 . 25 21 15 6 18 18 12 37 40 7 27 28 . 16 25 86 68 83 150 101 29 . Largest 3 | 2 2 2 3 3 . 3 3 3 3 3 . 3 1 1 1 3 3 1 3 3 3 3 3 . 1 3 3 3 3 3 2 2 . Hottest 360 | 40 70 70 110 66 . 74 79 79 74 76 . 85 85 85 85 85 85 90 105 105 105 105 105 . 90 105 110 105 190 360 178 98 . Shots Fired 2539 | 48 86 27 243 41 . 95 142 284 146 21 . 45 21 15 6 36 44 12 101 100 21 81 64 . 16 70 154 126 158 185 122 29 . Gun 1939 | 48 86 26 232 32 . 95 141 281 133 21 . 30 . . . 27 39 . 98 90 21 81 55 . . 67 95 87 108 3 43 . . Cannon 483 | . . . 6 . . . . . . . . 15 21 15 4 3 2 12 3 10 . . 9 . 16 2 59 39 50 120 72 25 . Launcher 115 | . . 1 5 9 . . 1 3 13 . . . . . . 6 3 . . . . . . . . 1 . . . 62 7 4 . Special 2 | . . . . . . . . . . . . . . . 2 . . . . . . . . . . . . . . . . . . Kinetic 1910 | 48 77 13 194 32 . 95 141 281 133 21 . 30 . . . 27 39 . 98 90 21 81 55 . . 67 95 87 111 3 46 25 . Thermal 512 | . 9 13 44 . . . . . . . . 15 21 15 4 3 2 12 3 10 . . 9 . 16 2 59 39 47 120 69 . . Explosive 46 | . . 1 5 9 . . 1 3 13 . . . . . . 6 3 . . . . . . . . 1 . . . . . 4 . Electromagnetic 69 | . . . . . . . . . . . . . . . . . . . . . . . . . . . . . . 62 7 . . Robot Hit Streak 44 | 6 5 4 16 5 . 13 8 14 13 8 . 11 5 . 7 11 10 . 22 9 6 8 5 . . 21 23 9 15 10 41 44 . Robot Miss Streak 5 | 3 4 2 5 4 . 2 5 5 5 1 . 3 . . . 5 3 . 2 4 2 4 3 . . 3 4 3 5 3 1 3 . Penetration Max 2 | . . . . . . . 1 1 1 . . . . . . . . . 1 2 1 1 1 . . 1 1 2 1 . 1 . . Secondary Targets 28 | . . . 4 . . 1 1 6 . 1 . . . . . . . . 2 1 . 1 1 . . 1 . 3 3 . 3 . . Max Gunslinging Chain 1 | . . . 1 . . 1 1 1 . 1 . . . . . . . . 1 1 . 1 1 . . 1 . 1 1 . 1 . . Shots Hit Robots 1267 | 26 50 15 145 22 . 61 68 166 65 14 . 15 4 . 2 16 27 . 63 60 15 36 24 . . 45 81 62 67 39 63 16 . Core Hits 714 | 6 17 10 71 15 . 24 36 65 49 10 . 20 4 . . 20 11 . 38 36 6 40 22 . 1 22 29 48 30 33 27 24 . Critical Kills 16 | . . . . . . 1 . . . . . . . . . . . . . . . 2 . . . . 1 5 3 1 3 . . Critical Parts Destroyed 27 | . . 1 2 . . . 1 2 1 . . . . . . . 1 . 2 1 . 1 . . . 1 3 2 3 . 6 . . Critical Strikes 50 | . . 2 6 . . 1 1 2 1 . . . . . . . 1 . 2 1 . 3 . . . 1 4 7 6 1 10 1 . Burn 5 | . . 1 4 . . . . . . . . . . . . . . . . . . . . . . . . . . . . . . Meltdown 1 | . . . . . . . . . . . . . . . . . . . . . . . . . . . . . . 1 . . . Destroy 42 | . . 1 2 . . 1 1 2 1 . . . . . . . 1 . 2 1 . 3 . . . 1 4 7 6 . 9 . . Blast 1 | . . . . . . . . . . . . . . . . . . . . . . . . . . . . . . . . 1 . Sever 1 | . . . . . . . . . . . . . . . . . . . . . . . . . . . . . . . 1 . . Melee Attacks 12 | . . . . . . . . . . . . . . . . . . . . . . . . . . . . . . 1 11 . . Impact . | . . . . . . . . . . . . . . . . . . . . . . . . . . . . . . . . . . Slashing 12 | . . . . . . . . . . . . . . . . . . . . . . . . . . . . . . 1 11 . . Piercing . | . . . . . . . . . . . . . . . . . . . . . . . . . . . . . . . . . . Sneak Attacks . | . . . . . . . . . . . . . . . . . . . . . . . . . . . . . . . . . . Combat Hostiles . | . . . . . . . . . . . . . . . . . . . . . . . . . . . . . . . . . . Follow-up Attacks . | . . . . . . . . . . . . . . . . . . . . . . . . . . . . . . . . . . Damage Inflicted 41322 | 290 525 325 2597 735 . 821 1741 3027 2138 356 . 643 124 . . 880 580 . 2107 2370 449 2975 1832 . 26 1645 2239 2382 2306 2916 3062 2231 . Guns 25698 | 290 525 214 1902 248 . 820 1265 2850 971 270 . 283 . . . 234 404 . 2024 2292 449 1186 864 . . 1299 1796 2020 1909 48 1535 . . Cannons 4293 | . . . 68 . . . . . . . . . 124 . . . . . . 78 . . 37 . 26 . 364 362 252 1481 773 728 . Explosions 10143 | . . 68 579 484 . . 421 152 1167 . . 319 . . . 646 176 . . . . 1752 931 . . 346 26 . . 1273 321 1482 . Melee 400 | . . . . . . . . . . . . . . . . . . . . . . . . . . . . . . . 400 . . Ramming 788 | . . 43 48 3 . 1 55 25 . 86 . 41 . . . . . . 83 . . 37 . . . . 53 . 145 114 33 21 . Kinetic 26190 | 290 474 125 1657 248 . 820 1265 2850 971 270 . 283 . . . 234 404 . 2024 2292 449 1186 864 . . 1299 1796 2020 1909 48 1684 728 . Thermal 4073 | . 51 89 313 . . . . . . . . 19 124 . . . . . . 78 . 8 256 . 26 . 390 362 252 1481 624 . . Explosive 6233 | . . 68 579 484 . . 421 152 1167 . . . . . . 646 176 . . . . . 712 . . 346 . . . . . 1482 . Electromagnetic 3638 | . . . . . . . . . . . . 300 . . . . . . . . . 1744 . . . . . . . 1273 321 . . Impact . | . . . . . . . . . . . . . . . . . . . . . . . . . . . . . . . . . . Slashing 400 | . . . . . . . . . . . . . . . . . . . . . . . . . . . . . . . 400 . . Piercing . | . . . . . . . . . . . . . . . . . . . . . . . . . . . . . . . . . . Highest Corruption 61 | . . . . 3 3 3 . . . 1 1 . . . . . . . . . . 1 1 1 1 2 . 1 7 13 61 22 24 Average Corruption 4 | . . . . 3 3 3 . . . 1 1 . . . . . . . . . . 1 1 1 1 1 . 1 5 3 17 7 22 Corruption Purged . | . . . . . . . . . . . . . . . . . . . . . . . . . . . . . . . . . . Corruption Blocked . | . . . . . . . . . . . . . . . . . . . . . . . . . . . . . . . . . . Effects 215 | . . . . 4 2 16 . . . 6 . . . . . . . . . . . 1 1 2 1 11 . 2 19 79 36 19 16 Message Errors 44 | . . . . 1 . 2 . . . . . . . . . . . . . . . 1 1 1 . 2 . 1 2 21 8 2 2 Matter Fused 53 | . . . . 1 1 2 . . . 3 . . . . . . . . . . . . . 1 . 3 . 1 6 16 4 8 7 Heat Flow Errors 26 | . . . . . 1 4 . . . 1 . . . . . . . . . . . . . . . 1 . . 2 10 3 1 3 Energy Discharges 19 | . . . . . . 2 . . . . . . . . . . . . . . . . . . . 1 . . 1 10 3 2 . Parts Rejected 3 | . . . . . . . . . . . . . . . . . . . . . . . . . . 1 . . . . 2 . . Parts Fused 2 | . . . . . . . . . . . . . . . . . . . . . . . . . . 1 . . . . . . 1 Data Loss (minor) 24 | . . . . 2 . . . . . 1 . . . . . . . . . . . . . . 1 . . . 5 8 5 1 1 Data Loss (major) 15 | . . . . . . 3 . . . 1 . . . . . . . . . . . . . . . . . . 1 8 1 . 1 Misfires 5 | . . . . . . . . . . . . . . . . . . . . . . . . . . 1 . . 1 3 . . . Alerts 5 | . . . . . . 2 . . . . . . . . . . . . . . . . . . . 1 . . . 1 . . 1 Misdirections 12 | . . . . . . . . . . . . . . . . . . . . . . . . . . . . . . . 8 4 . Weapon Failures 7 | . . . . . . 1 . . . . . . . . . . . . . . . . . . . . . . 1 2 2 1 . Overload Shots . | . . . . . . . . . . . . . . . . . . . . . . . . . . . . . . . . . . Overflow Damage 494 | . . 8 25 12 . . 57 . 63 3 . . . . . 15 16 . 41 . . 66 35 . . . 24 14 . 27 40 48 . Projectiles 114 | . . . . . . . . . . . . . . . . . . . . . . . . . . . 11 14 . 15 39 35 . Explosions 309 | . . 8 25 12 . . 55 . 63 . . . . . . 15 16 . . . . 66 35 . . . . . . . 1 13 . Melee 71 | . . . . . . . 2 . . 3 . . . . . . . . 41 . . . . . . . 13 . . 12 . . . Knockbacks 11 | . . . 1 . . . . . . . . . . . . . . . . . . . . . . . . . 1 2 . 7 . Impact 3 | . . . . . . . . . . . . . . . . . . . . . . . . . . . . . 1 2 . . . Kinetic 6 | . . . 1 . . . . . . . . . . . . . . . . . . . . . . . . . . . . 5 . Secondary 2 | . . . . . . . . . . . . . . . . . . . . . . . . . . . . . . . . 2 . Self-Inflicted Damage 482 | . . . 46 57 . . . . 11 . . . . . . . . . . . . 94 . . . 29 . . . 175 64 6 . Shots 15 | . . . 1 2 . . . . 1 . . . . . . . . . . . . 1 . . . 1 . . . 7 2 . . Rammed 4 | . . . . . . . . . . . . . . . . . . . . . . . . . . . . . . . 1 3 . Targets Rammed 65 | . . 9 13 1 . 1 5 2 . 7 . 3 . . . . . . 4 . . 2 . . . . 1 . 6 4 3 4 . Kicked 61 | . . 9 13 1 . 1 5 2 . 7 . 3 . . . . . . 4 . . 2 . . . . 1 . 6 4 2 1 . Crushed . | . . . . . . . . . . . . . . . . . . . . . . . . . . . . . . . . . . Highest Temperature 536 | . 45 63 235 . 107 230 . 24 . 128 . 22 . . . . 128 215 54 24 3 . 153 . 6 233 56 400 7 536 148 196 245 Average Temperature 69 | . 17 29 60 . 59 54 . 6 . 65 . 22 . . . . 42 84 12 10 3 . 54 . 2 89 20 143 7 101 86 91 109 Received Heat Transfer 3326 | . . 15 300 63 . 90 153 639 210 9 . 158 . . . 156 18 . 177 . 27 . 18 . . 139 33 530 12 236 136 144 63 Effects 14 | . . . 3 . . . . . . . . . . . . . . . . . . . . . . . . 3 . 8 . . . Shutdowns 2 | . . . . . . . . . . . . . . . . . . . . . . . . . . . . 1 . 1 . . . Energy Bleed 3 | . . . . . . . . . . . . . . . . . . . . . . . . . . . . 1 . 2 . . . Interference 6 | . . . 3 . . . . . . . . . . . . . . . . . . . . . . . . . . 3 . . . Matter Decay 2 | . . . . . . . . . . . . . . . . . . . . . . . . . . . . 1 . 1 . . . Damage (minor) 1 | . . . . . . . . . . . . . . . . . . . . . . . . . . . . . . 1 . . . Siege Activations 1 | . . . . . . . . . . . . . . . . . . . . . . . . . . . . . . . . 1 . Total Turns 14 | . . . . . . . . . . . . . . . . . . . . . . . . . . . . . . . . 14 . Longest Duration 14 | . . . . . . . . . . . . . . . . . . . . . . . . . . . . . . . . 14 . Martial Activations . | . . . . . . . . . . . . . . . . . . . . . . . . . . . . . . . . . . Shielding Activations . | . . . . . . . . . . . . . . . . . . . . . . . . . . . . . . . . . . Robots Disrupted . | . . . . . . . . . . . . . . . . . . . . . . . . . . . . . . . . . . Combat Hostiles . | . . . . . . . . . . . . . . . . . . . . . . . . . . . . . . . . . . Robots Corrupted 13 | . . . . . . . . . . . . . . . . . . . . . . 1 . . . . . . . 11 1 . . Combat Hostiles 11 | . . . . . . . . . . . . . . . . . . . . . . . . . . . . . . 10 1 . . Parts Fried 40 | . . . . . . . . . . . . . . . . . . . 2 . . 9 . . . . . . . 28 1 . . Impact Corruptions 5 | . . . . . . . 1 . . 1 . . . . . . . . 1 . . . . . . . 1 . . 1 . . . Robots Melted 1 | . . . . . . . . . . . . . . . . . . . . . . . . . . . . . . 1 . . . Combat Hostiles 1 | . . . . . . . . . . . . . . . . . . . . . . . . . . . . . . 1 . . . Parts Melted 19 | . . 2 2 . . . . . . . . . . . . . . . . . . . . . . . . . 1 13 1 . . Heat Transferred 4558 | . 148 333 1221 . . . . . . . . 100 148 . . . . . . . . 50 150 . . . 148 370 222 1150 518 . . Parts Sabotaged . | . . . . . . . . . . . . . . . . . . . . . . . . . . . . . . . . . . Parts Stolen . | . . . . . . . . . . . . . . . . . . . . . . . . . . . . . . . . . . Parts Stripped . | . . . . . . . . . . . . . . . . . . . . . . . . . . . . . . . . . . Power Chain Reactions 3 | . . . . . . . . . . . . 1 . . . . . . . . . 1 . . . . 1 . . . . . . Alert | -11 -10 -10 -9 -9 -9 -8 -8 -8 -8 -8 -8 -6 -6 -6 -6 -6 -5 -5 -5 -5 -5 -5 -4 -4 -4 -3 -3 -3 -2 -2 -2 -1 -1 ------- Run | Yrd Mat Min Mat Min Exi Min Mat Sto Gar Rec Scr Fac Low Low Zio Dee Pro Fac Ext Cet Arc Hub Fac Upp War Pro Res Tes Res Qua Frg Acc Com Maximum Alert Level 4 | . . . 2 . . . . 2 3 2 . 1 . . . . . . 1 1 1 4 3 . . . . 1 1 1 . 1 . Low Security (%) 74 | 100 100 100 33 100 . 100 100 60 . . . 97 . . . . . 100 84 78 90 8 . . . . 100 73 73 93 100 86 100 Level 1 11 | . . . 30 . . . . 31 12 20 . 2 . . . . . . 15 21 9 1 . . . . . 26 26 6 . 13 . Level 2 7 | . . . 35 . . . . 7 15 80 . . . . . . . . . . . 29 32 . . . . . . . . . . Level 3 5 | . . . . . . . . . 71 . . . . . . . . . . . . . 67 . . . . . . . . . . Level 4 . | . . . . . . . . . . . . . . . . . . . . . . 60 . . . . . . . . . . . Level 5 . | . . . . . . . . . . . . . . . . . . . . . . . . . . . . . . . . . . High Security . | . . . . . . . . . . . . . . . . . . . . . . . . . . . . . . . . . . Max Security . | . . . . . . . . . . . . . . . . . . . . . . . . . . . . . . . . . . Peak Influence 1239 | 10 111 134 517 192 . 106 185 420 1042 491 . 211 . . . . . 159 290 256 227 1239 1024 . . . 80 375 268 230 170 321 140 Initial 588 | . . 18 18 177 . . 38 37 265 468 . . . . . . . 159 . 138 63 2 588 . . . 44 36 184 117 62 11 140 Average 170 | . 31 58 293 72 . 33 80 200 728 424 . 23 . . . . . 66 62 164 113 904 705 . . . 19 115 166 91 70 53 68 Influence Increases 13301 | 20 212 275 1021 163 . 310 380 1172 797 357 . 319 . . . . 149 172 722 443 214 1530 806 . . 297 386 618 528 1083 473 608 246 Destroy 0b10 Robot/C 6040 | . 120 180 640 60 . 240 220 660 520 140 . 40 . . . . 80 . 420 180 80 320 220 . . 240 160 320 240 360 260 220 120 Destroy 0b10 Robot/NC 460 | 20 20 . 70 5 . 5 65 30 . . . 5 . . . . 10 . 20 10 . 75 40 . . . 10 5 20 20 20 10 . Destroy Leader 1104 | . 26 30 160 10 . 50 64 182 30 . . . . . . . 10 . 34 . . 68 48 . . 40 42 30 60 110 70 30 10 Allied During Kill 1092 | . . 33 15 . . . . 11 . 6 . 1 . . . . 49 . 147 190 80 449 23 . . 17 . . . . . . 71 Successful Hack 438 | . . . 4 . . . . 53 7 31 . 5 . . . . . . 12 . . . 7 . . . 33 52 43 170 . 21 . Select Force Hacks 180 | . . . . . . . . . . 180 . . . . . . . . . . . . . . . . . . . . . . . Disable Machine 1320 | . . 30 60 . . . 15 165 15 . . 90 . . . . . . 15 15 30 225 315 . . . . 60 15 240 15 15 . Anti-Garrison Action 150 | . . . . . . . . . 150 . . . . . . . . . . . . . . . . . . . . . . . . Destroy Structure 1467 | . 1 2 42 73 . . 16 26 45 . . 13 . . . . . 22 74 48 24 378 138 . . . 96 46 120 123 108 72 . Advance Influence 150 | . . . . . . . . . . . . . . . . . . 150 . . . . . . . . . . . . . . . Partial Spotted 45 | . . . . . . . . . . . . 15 . . . . . . . . . . . . . . . . . 15 . . 15 Lose Combat Pursuer 855 | . 45 . 30 15 . 15 . 45 30 . . 150 . . . . . . . . . 15 15 . . . 45 105 30 45 . 240 30 Influence Decreases 13255 | 20 165 273 616 617 . 211 391 852 163 1030 369 108 211 . . . 134 187 474 532 366 336 991 447 569 231 387 354 649 1180 565 406 421 Entered New Map 3815 | . . 29 31 277 . . 61 51 143 574 369 . 79 . . . . 6 . 110 96 5 613 377 569 . 22 29 145 91 49 8 81 Time Decay 7492 | 20 165 244 518 310 . 211 320 571 . 416 . 78 132 . . . 134 181 304 342 230 130 318 70 . 171 355 315 494 769 336 218 140 Search Patrol Dispatched 100 | . . . . . . . . . . . . . . . . . . . . . . . . . . . . . . . . 100 . Lost Part 500 | . . . 10 30 . . 10 40 20 . . 10 . . . . . . 10 . . . . . . . 10 10 10 20 180 80 60 Lost Ally 748 | . . . 57 . . . . 40 . 40 . 20 . . . . . . 10 80 40 201 60 . . 60 . . . . . . 140 Purge Threat 600 | . . . . . . . . 150 . . . . . . . . . . 150 . . . . . . . . . . 300 . . . Squads Dispatched 53 | . . . 4 . . . 2 5 . . . 2 . . . . . 2 4 . . 3 3 . . . 4 3 4 2 6 5 4 Investigation 9 | . . . . . . . . 1 . . . 1 . . . . . 1 3 . . . . . . . 2 . . . . . 1 Extermination 17 | . . . . . . . . . . . . . . . . . . 1 . . . 1 2 . . . . 2 3 2 2 3 1 Reinforcement 22 | . . . 4 . . . 2 1 . . . 1 . . . . . . 1 . . 2 1 . . . 2 1 1 . 2 2 2 Assault 2 | . . . . . . . . 2 . . . . . . . . . . . . . . . . . . . . . . . . . Garrison 3 | . . . . . . . . 1 . . . . . . . . . . . . . . . . . . . . . . 2 . . Intercept . | . . . . . . . . . . . . . . . . . . . . . . . . . . . . . . . . . . Searches Triggered 1 | . . . . . . . . . . . . . . . . . . . . . . . . . . . . . . . . 1 . Construction Impeded 3 | . . . 1 . . . 1 . . . . . . . . . . . . . . . . . . . . . . . 1 . . Haulers Reinforced 1 | . . . . . . . . . . . . . . . . . . . . . . . . . . . . . . . . 1 . Active Scanning Responses . | . . . . . . . . . . . . . . . . . . . . . . . . . . . . . . . . . . Cargo Convoy Interrupts . | . . . . . . . . . . . . . . . . . . . . . . . . . . . . . . . . . . Stealth | -11 -10 -10 -9 -9 -9 -8 -8 -8 -8 -8 -8 -6 -6 -6 -6 -6 -5 -5 -5 -5 -5 -5 -4 -4 -4 -3 -3 -3 -2 -2 -2 -1 -1 --------- Run | Yrd Mat Min Mat Min Exi Min Mat Sto Gar Rec Scr Fac Low Low Zio Dee Pro Fac Ext Cet Arc Hub Fac Upp War Pro Res Tes Res Qua Frg Acc Com Distress Signals 25 | . . . 2 . . . . 4 . . . . . . . . . . . 2 1 2 1 . 2 . 3 . 3 2 . 1 2 Communications Jammed 40 | . . . . . . . . . . . . . . . . . . . 9 . . 3 3 . . . 9 1 13 2 . . . Distress Signals 38 | . . . . . . . . . . . . . . . . . . . 9 . . 1 3 . . . 9 1 13 2 . . . Times Spotted 451 | . 13 9 47 9 . 12 16 45 25 5 . 17 . . . 10 5 . 20 9 4 12 12 . 1 12 17 28 18 23 27 36 19 Peak Tracking Total 14 | . 4 3 6 3 . 3 4 5 8 2 . 5 . . . 6 4 . 6 5 2 7 4 . . 4 5 12 6 4 10 14 13 Tactical Retreats 34 | . 2 . 2 1 . 1 . 2 2 . . 4 . . . . . . . . . 1 1 . . . 2 2 2 2 . 8 2 Traps | -11 -10 -10 -9 -9 -9 -8 -8 -8 -8 -8 -8 -6 -6 -6 -6 -6 -5 -5 -5 -5 -5 -5 -4 -4 -4 -3 -3 -3 -2 -2 -2 -1 -1 ------- Run | Yrd Mat Min Mat Min Exi Min Mat Sto Gar Rec Scr Fac Low Low Zio Dee Pro Fac Ext Cet Arc Hub Fac Upp War Pro Res Tes Res Qua Frg Acc Com Traps Triggered 21 | . . 1 . . . . . 3 4 . . 1 . . . . . . 2 . . 1 1 . . . 1 . . 6 . . 1 Indirectly 2 | . . . . . . . . . . . . . . . . . . . . . . 1 . . . . . . . 1 . . . Trap Hack Attempts . | . . . . . . . . . . . . . . . . . . . . . . . . . . . . . . . . . . Triggered . | . . . . . . . . . . . . . . . . . . . . . . . . . . . . . . . . . . Disarmed . | . . . . . . . . . . . . . . . . . . . . . . . . . . . . . . . . . . Reprogrammed . | . . . . . . . . . . . . . . . . . . . . . . . . . . . . . . . . . . Reused . | . . . . . . . . . . . . . . . . . . . . . . . . . . . . . . . . . . Traps Extracted . | . . . . . . . . . . . . . . . . . . . . . . . . . . . . . . . . . . Installed . | . . . . . . . . . . . . . . . . . . . . . . . . . . . . . . . . . . Triggered . | . . . . . . . . . . . . . . . . . . . . . . . . . . . . . . . . . . Machines | -11 -10 -10 -9 -9 -9 -8 -8 -8 -8 -8 -8 -6 -6 -6 -6 -6 -5 -5 -5 -5 -5 -5 -4 -4 -4 -3 -3 -3 -2 -2 -2 -1 -1 ---------- Run | Yrd Mat Min Mat Min Exi Min Mat Sto Gar Rec Scr Fac Low Low Zio Dee Pro Fac Ext Cet Arc Hub Fac Upp War Pro Res Tes Res Qua Frg Acc Com Machines Disabled 102 | . . 2 4 . . . 1 11 4 . . 6 . . 4 . . . 3 1 2 15 21 . 1 . . 5 1 16 4 1 . Max in Single Turn 11 | . . 2 2 . . . 1 1 1 . . 3 . . 1 . . . 1 1 . 11 10 . 1 . . 1 1 1 1 1 . Garrison Access 3 | . . . . . . . . . . . . . . . . . . . . . . . . . . . 1 . 2 . . . . Garrison Relay 3 | . . . . . . . . . 3 . . . . . . . . . . . . . . . . . . . . . . . . Network Hub 1 | . . . . . . . . . . . . . . . . . . . . . . 1 . . . . . . . . . . . Machines Repaired . | . . . . . . . . . . . . . . . . . . . . . . . . . . . . . . . . . . Machines Dismantled 5 | . . . . . . . . 1 . . . . . . 4 . . . . . . . . . . . . . . . . . . Machines Sabotaged . | . . . . . . . . . . . . . . . . . . . . . . . . . . . . . . . . . . Overloaded Fab Kills . | . . . . . . . . . . . . . . . . . . . . . . . . . . . . . . . . . . Hacking | -11 -10 -10 -9 -9 -9 -8 -8 -8 -8 -8 -8 -6 -6 -6 -6 -6 -5 -5 -5 -5 -5 -5 -4 -4 -4 -3 -3 -3 -2 -2 -2 -1 -1 --------- Run | Yrd Mat Min Mat Min Exi Min Mat Sto Gar Rec Scr Fac Low Low Zio Dee Pro Fac Ext Cet Arc Hub Fac Upp War Pro Res Tes Res Qua Frg Acc Com Machines Accessed 94 | . . 1 2 . 1 . 1 11 2 12 3 2 1 1 . . . 3 11 . . . 2 . 2 . 6 7 7 11 1 6 1 Terminals 57 | . . . 1 . . . . 9 2 6 . 2 . . . . . 1 9 . . . 2 . . . 5 5 2 7 1 4 1 Fabricators 3 | . . . . . . . . . . . . . . . . . . 2 . . . . . . . . . 1 . . . . . Repair Stations 3 | . . . . . . . . 1 . . . . . . . . . . . . . . . . . . . . . 2 . . . Recycling Units 10 | . . . . . . . 1 . . 6 . . . . . . . . 2 . . . . . . . . . 1 . . . . Scanalyzers 6 | . . . 1 . . . . . . . . . . . . . . . . . . . . . . . . 1 2 2 . . . Garrison Access 6 | . . . . . . . . 1 . . . . . . . . . . . . . . . . . . 1 . 2 . . 2 . Total Hacks 251 | . . 1 5 . 1 . 3 30 4 22 29 7 1 1 . . . 10 23 . . . 5 . 3 . 11 22 15 31 1 23 3 Successful 144 | . . 1 4 . 1 . 1 20 1 16 29 3 1 1 . . . 7 11 . . . 1 . 3 . 3 7 9 20 1 4 . Failed 105 | . . . 1 . . . 2 10 3 6 . 4 . . . . . 3 12 . . . 4 . . . 8 14 6 10 . 19 3 Catastrophic 17 | . . . . . . . . . . . . . . . . . . . 2 . . . 2 . . . 2 . 2 2 . 5 2 Database Lockouts 2 | . . . . . . . . . . . . . . . . . . . . . . . . . . . . 1 . 1 . . . Manual 81 | . . . 2 . . . . 17 . 22 . 7 . . 1 . . 1 11 1 . . 4 . . . 2 1 4 5 . 3 . Terminals 144 | . . . 2 . . . . 25 4 14 . 7 . . . . . 1 20 . . . 5 . . . 9 14 5 21 1 13 3 Fabricators 13 | . . . . . . . . . . . . . . . . . . 9 . . . . . . . . . 4 . . . . . Repair Stations 10 | . . . . . . . . 4 . . . . . . . . . . . . . . . . . . . . . 6 . . . Recycling Units 17 | . . . . . . . 3 . . 8 . . . . . . . . 3 . . . . . . . . . 3 . . . . Scanalyzers 15 | . . . 3 . . . . . . . . . . . . . . . . . . . . . . . . 4 4 4 . . . Garrison Access 16 | . . . . . . . . 1 . . . . . . . . . . . . . . . . . . 2 . 3 . . 10 . Terminal Hacks 74 | . . 1 . . 1 . . 6 1 . 29 2 1 1 . . . 1 7 . . . 1 . 3 . 2 4 1 9 1 3 . Record 26 | . . . . . 1 . . . . . 21 . . . . . . . . . . . . . 2 . 1 . . 1 . . . Robot Analysis 8 | . . . . . . . . . . . 7 . . . . . . . . . . . . . . . . . . 1 . . . Prototype ID Bank 1 | . . . . . . . . . . . . . . . . . . . . . . . . . . . . . . 1 . . . Open Door 16 | . . 1 . . . . . 2 1 . . . 1 1 . . . 1 4 . . . . . 1 . . 1 . . . 3 . Level Access Points 1 | . . . . . . . . . . . . . . . . . . . . . . . . . . . . 1 . . . . . Branch Access Points 2 | . . . . . . . . . . . . . . . . . . . . . . . 1 . . . . . 1 . . . . Terminal Index 1 | . . . . . . . . 1 . . . . . . . . . . . . . . . . . . . . . . . . . Alert Level 3 | . . . . . . . . . . . . . . . . . . . 1 . . . . . . . . . . 2 . . . Unreport Threat 4 | . . . . . . . . 1 . . . . . . . . . . 1 . . . . . . . . . . 2 . . . Assault Status 1 | . . . . . . . . 1 . . . . . . . . . . . . . . . . . . . . . . . . . Recall Investigation 2 | . . . . . . . . . . . . 1 . . . . . . 1 . . . . . . . . . . . . . . Hauler Manifests 1 | . . . . . . . . 1 . . . . . . . . . . . . . . . . . . . . . . . . . Registered Components 2 | . . . . . . . . . . . . 1 . . . . . . . . . . . . . . . . . 1 . . . Registered Prototypes 1 | . . . . . . . . . . . . . . . . . . . . . . . . . . . 1 . . . . . . Zone Layout 3 | . . . . . . . . . . . . . . . . . . . . . . . . . . . . 2 . 1 . . . Proto ID Catalog 2 | . . . . . . . . . . . 1 . . . . . . . . . . . . . . . . . . . 1 . . Fabricator Hacks 8 | . . . . . . . . . . . . . . . . . . 6 . . . . . . . . . 2 . . . . . Network Status 1 | . . . . . . . . . . . . . . . . . . . . . . . . . . . . 1 . . . . . Load Schematic 3 | . . . . . . . . . . . . . . . . . . 3 . . . . . . . . . . . . . . . Build 4 | . . . . . . . . . . . . . . . . . . 3 . . . . . . . . . 1 . . . . . Repair Station Hacks 8 | . . . . . . . . 2 . . . . . . . . . . . . . . . . . . . . . 6 . . . Scan Component 4 | . . . . . . . . 1 . . . . . . . . . . . . . . . . . . . . . 3 . . . Repair 4 | . . . . . . . . 1 . . . . . . . . . . . . . . . . . . . . . 3 . . . Recycling Unit Hacks 5 | . . . . . . . 1 . . 1 . . . . . . . . . . . . . . . . . . 3 . . . . Retrieve Matter 2 | . . . . . . . . . . . . . . . . . . . . . . . . . . . . . 2 . . . . Retrieve Components 3 | . . . . . . . 1 . . 1 . . . . . . . . . . . . . . . . . . 1 . . . . Scanalyzer 7 | . . . 2 . . . . . . . . . . . . . . . . . . . . . . . . 1 2 2 . . . Retrieve Study 7 | . . . 2 . . . . . . . . . . . . . . . . . . . . . . . . 1 2 2 . . . Garrison Access Hacks 4 | . . . . . . . . 1 . . . . . . . . . . . . . . . . . . 1 . 2 . . . . Unlock Access 1 | . . . . . . . . 1 . . . . . . . . . . . . . . . . . . . . . . . . . Seal Access 3 | . . . . . . . . . . . . . . . . . . . . . . . . . . . 1 . 2 . . . . Unauthorized Hacks 38 | . . . 2 . . . . 11 . 15 . 1 . . . . . . 4 . . . . . . . . . 1 3 . 1 . Terminals 30 | . . . 2 . . . . 11 . 9 . 1 . . . . . . 2 . . . . . . . . . 1 3 . 1 . Assimilate 1 | . . . . . . . . . . . . . . . . . . . 1 . . . . . . . . . . . . . . Botnet 16 | . . . 1 . . . . 5 . 3 . 1 . . . . . . 1 . . . . . . . . . 1 3 . 1 . Skim 13 | . . . 1 . . . . 6 . 6 . . . . . . . . . . . . . . . . . . . . . . . Fabricators . | . . . . . . . . . . . . . . . . . . . . . . . . . . . . . . . . . . Repair Stations . | . . . . . . . . . . . . . . . . . . . . . . . . . . . . . . . . . . Recycling Units 8 | . . . . . . . . . . 6 . . . . . . . . 2 . . . . . . . . . . . . . . Tunnel 6 | . . . . . . . . . . 6 . . . . . . . . . . . . . . . . . . . . . . . Scrapoids 2 | . . . . . . . . . . . . . . . . . . . 2 . . . . . . . . . . . . . . Scanalyzers . | . . . . . . . . . . . . . . . . . . . . . . . . . . . . . . . . . . Garrison Access . | . . . . . . . . . . . . . . . . . . . . . . . . . . . . . . . . . . Data Cores Recovered . | . . . . . . . . . . . . . . . . . . . . . . . . . . . . . . . . . . Used . | . . . . . . . . . . . . . . . . . . . . . . . . . . . . . . . . . . Hacking Detections 58 | . . . 1 . . . 1 7 2 5 . 2 . . . . . 1 7 1 . . 2 . . . 5 6 3 10 . 4 1 Full Trace Events 5 | . . . . . . . . 1 . 1 . . . . . . . 1 1 . . . . . . . . . . . . . 1 Feedback Events 2 | . . . . . . . . . . 1 . . . . . . . . . . . . . . . . . . . . . . 1 Corruption 1 | . . . . . . . . . . 1 . . . . . . . . . . . . . . . . . . . . . . . Hackware Fried 1 | . . . . . . . . . . . . . . . . . . . . . . . . . . . . . . . . . 1 Feedback Blocked . | . . . . . . . . . . . . . . . . . . . . . . . . . . . . . . . . . . Robot Schematics Acquired 5 | . . . . . . . . . . . . . . . 3 . . . . . . . . . . . . 1 . 1 . . . Robots Built . | . . . . . . . . . . . . . . . . . . . . . . . . . . . . . . . . . . Authchips . | . . . . . . . . . . . . . . . . . . . . . . . . . . . . . . . . . . Time . | . . . . . . . . . . . . . . . . . . . . . . . . . . . . . . . . . . Total Robot Build Rating . | . . . . . . . . . . . . . . . . . . . . . . . . . . . . . . . . . . Part Schematics Acquired 22 | . . . . . . . . . . . . . . . 13 . . . . . . . . . . . . 3 . 6 . . . Parts Built 8 | . . . . . . . . . . . . . . . . . . 6 . . . . . . . . . 2 . . . . . Authchips 3 | . . . . . . . . . . . . . . . . . . 3 . . . . . . . . . . . . . . . Time 238 | . . . . . . . . . . . . . . . . . . 169 . . . . . . . . . 69 . . . . . Total Part Build Rating 58 | . . . . . . . . . . . . . . . . . . 40 . . . . . . . . . 18 . . . . . Part Studies Acquired 6 | . . . 1 . . . . . . . . . . . . . . . . . . . . . . . . 1 2 2 . . . Parts Repaired 4 | . . . . . . . . 1 . . . . . . . . . . . . . . . . . . . . . 3 . . . Time 226 | . . . . . . . . 22 . . . . . . . . . . . . . . . . . . . . . 204 . . . Parts Recycled . | . . . . . . . . . . . . . . . . . . . . . . . . . . . . . . . . . . Recycled Matter . | . . . . . . . . . . . . . . . . . . . . . . . . . . . . . . . . . . Retrieved Matter . | . . . . . . . . . . . . . . . . . . . . . . . . . . . . . . . . . . Retrieved Components 17 | . . . . . . . 9 . . 6 . . . . . . . . . . . . . . . . . . 2 . . . . Parts Scanalyzed . | . . . . . . . . . . . . . . . . . . . . . . . . . . . . . . . . . . Part Schematics Acquired . | . . . . . . . . . . . . . . . . . . . . . . . . . . . . . . . . . . Parts Damaged . | . . . . . . . . . . . . . . . . . . . . . . . . . . . . . . . . . . Bothacking | -11 -10 -10 -9 -9 -9 -8 -8 -8 -8 -8 -8 -6 -6 -6 -6 -6 -5 -5 -5 -5 -5 -5 -4 -4 -4 -3 -3 -3 -2 -2 -2 -1 -1 ------------ Run | Yrd Mat Min Mat Min Exi Min Mat Sto Gar Rec Scr Fac Low Low Zio Dee Pro Fac Ext Cet Arc Hub Fac Upp War Pro Res Tes Res Qua Frg Acc Com Used RIF Installer . | . . . . . . . . . . . . . . . . . . . . . . . . . . . . . . . . . . Robots Hacked . | . . . . . . . . . . . . . . . . . . . . . . . . . . . . . . . . . . Non-combat . | . . . . . . . . . . . . . . . . . . . . . . . . . . . . . . . . . . Combat . | . . . . . . . . . . . . . . . . . . . . . . . . . . . . . . . . . . Robot Hacks Applied . | . . . . . . . . . . . . . . . . . . . . . . . . . . . . . . . . . . Relay Couplers Released 16 | . . . . . . . . . 13 . . . . . . . . . . . . . . . . . . . . . 3 . . Machine Destruction 13 | . . . . . . . . . 13 . . . . . . . . . . . . . . . . . . . . . . . . Programmers 3 | . . . . . . . . . . . . . . . . . . . . . . . . . . . . . . . 3 . . Fabnet Peak Effective % . | . . . . . . . . . . . . . . . . . . . . . . . . . . . . . . . . . . Robots Rewired 16 | . . . . . . . . . . 1 . . . . . . . . 10 . . . . . 5 . . . . . . . . Allies Hacked 1 | . . . . . . . . . . . . 1 . . . . . . . . . . . . . . . . . . . . . Hacks Repelled . | . . . . . . . . . . . . . . . . . . . . . . . . . . . . . . . . . . Allies | -11 -10 -10 -9 -9 -9 -8 -8 -8 -8 -8 -8 -6 -6 -6 -6 -6 -5 -5 -5 -5 -5 -5 -4 -4 -4 -3 -3 -3 -2 -2 -2 -1 -1 -------- Run | Yrd Mat Min Mat Min Exi Min Mat Sto Gar Rec Scr Fac Low Low Zio Dee Pro Fac Ext Cet Arc Hub Fac Upp War Pro Res Tes Res Qua Frg Acc Com Total Allies 55 | . . 3 . . . . . 2 2 1 . . . . 2 . . . 28 5 . . . . 5 . . . . . . . 7 Largest Group 30 | . . 3 3 . . . . 2 2 2 1 1 . . 2 2 2 . 27 30 23 20 3 . 5 3 . . . . . . 7 Highest-Rated Group 1463 | . . 40 39 . . . . 62 51 51 18 18 . . 192 192 192 . 1106 1463 1028 867 84 . 277 164 . . . . . . 100 Highest-Rated Ally 159 | . . 16 16 . . . . 31 31 31 18 18 . . 96 96 96 . 159 159 96 96 39 . 68 68 . . . . . . 15 Initial Warlord ECA Mod 5 | . . . . . . . . . . 5 5 . . . . . . . . . . . . . . . . . . . . . . Total Orders 12 | . . . . . . . . . . . . 1 . . . . . . . 8 3 . . . . . . . . . . . . STAY 9 | . . . . . . . . . . . . 1 . . . . . . . 6 2 . . . . . . . . . . . . FOLLOW 3 | . . . . . . . . . . . . . . . . . . . . 2 1 . . . . . . . . . . . . Ally Attacks 363 | . . 9 24 . . . . 23 . 5 . . . . . 38 17 . 51 38 28 63 17 . . 17 . . . . . . 33 Total Damage 8992 | . . 100 275 . . . . 375 . 96 . . . . . 896 480 . 1248 979 617 1599 585 . . 1015 . . . . . . 727 Kills 67 | . . 2 4 . . . . 2 . 1 . . . . . 7 2 . 10 7 4 13 6 . . 3 . . . . . . 6 Allies Corrupted . | . . . . . . . . . . . . . . . . . . . . . . . . . . . . . . . . . . Allies Melted 5 | . . . . . . . . . . . . . . . . . . . . . . . . . 5 . . . . . . . . Intel | -11 -10 -10 -9 -9 -9 -8 -8 -8 -8 -8 -8 -6 -6 -6 -6 -6 -5 -5 -5 -5 -5 -5 -4 -4 -4 -3 -3 -3 -2 -2 -2 -1 -1 ------- Run | Yrd Mat Min Mat Min Exi Min Mat Sto Gar Rec Scr Fac Low Low Zio Dee Pro Fac Ext Cet Arc Hub Fac Upp War Pro Res Tes Res Qua Frg Acc Com Active Infowar (turns) 22008 | 127 799 601 584 777 164 62 . . . . . 484 368 309 1400 7 342 471 1869 770 493 276 708 145 1650 885 1212 722 1303 4438 742 300 . Optics 2 | . . . . . . . . . . . . . . . . . . . . . . . . . . . 2 . . . . . . Sensors 6159 | . . . . . . . . . . . . . . . . . . . . . . . . . . . . . 988 4291 704 176 . Terrain 298 | . . . . . . . . . . . . . . . . . . . . . . . . . . . . . . . . 298 . Structural 5606 | . . . . . . . . . . . . . 368 309 1396 4 . . . . . . . . . . 875 . 890 1022 742 . . Seismic 11292 | 127 799 601 584 775 164 62 . . . . . 484 368 309 1399 7 342 471 . . . . 697 145 994 786 1147 714 317 . . . . T.N.C. 2 | . . . . 2 . . . . . . . . . . . . . . . . . . . . . . . . . . . . . Machine Analysis 1 | . . . . . . . . . . . . . . . . . . . . . . . . . . . . . . 1 . . . Cloaking 275 | . . . . . . . . . . . . . . . . . . . . . . . . . . . . . . . . 275 . Jamming 14880 | . . . . . . . . . . . . . . . . . . . 1869 770 493 276 708 145 1639 885 1212 711 1302 4428 442 . . Robot Analysis Total 8 | . . . . . . . . . . . 7 . . . . . . . . . . . . . . . . . . 1 . . . Derelict Logs Recovered 4 | . . 1 . 1 . . . . . . . . 1 . 1 . . . . . . . . . . . . . . . . . . Drone Launches . | . . . . . . . . . . . . . . . . . . . . . . . . . . . . . . . . . . Drone Recoveries . | . . . . . . . . . . . . . . . . . . . . . . . . . . . . . . . . . . Exploration | -11 -10 -10 -9 -9 -9 -8 -8 -8 -8 -8 -8 -6 -6 -6 -6 -6 -5 -5 -5 -5 -5 -5 -4 -4 -4 -3 -3 -3 -2 -2 -2 -1 -1 ------------- Run | Yrd Mat Min Mat Min Exi Min Mat Sto Gar Rec Scr Fac Low Low Zio Dee Pro Fac Ext Cet Arc Hub Fac Upp War Pro Res Tes Res Qua Frg Acc Com Turns Passed 33116 | 244 799 601 1552 940 164 739 780 1723 1053 1010 2633 487 368 309 1403 483 342 471 1869 770 493 276 708 145 1650 964 1212 811 1303 4938 806 752 318 Spaces Moved 21005 | 81 543 450 729 470 155 284 498 975 625 775 1669 227 249 245 1096 320 232 247 904 447 327 145 318 109 1017 356 801 576 819 3176 410 1027 703 Core 822 | 16 . . . . . . . . . . . . . . . . . . . . . . . . . . . . . . 83 679 44 Treads 13 | . . . . . . . . . . . . . . . . . . . . . . . . . . . . . . . . 13 . Legs 19176 | 65 543 450 729 470 155 284 498 975 625 775 1669 227 249 245 1096 320 232 247 904 447 327 145 318 109 1017 356 801 576 819 3176 327 . . Wheels . | . . . . . . . . . . . . . . . . . . . . . . . . . . . . . . . . . . Hover 335 | . . . . . . . . . . . . . . . . . . . . . . . . . . . . . . . . 335 . Flight 659 | . . . . . . . . . . . . . . . . . . . . . . . . . . . . . . . . . 659 Fastest Speed 28 | 50 120 120 105 105 105 175 105 105 115 118 118 114 114 114 114 113 113 116 116 116 116 116 118 118 115 115 108 94 94 98 50 40 28 Average Speed 115 | 106 120 120 155 174 105 177 112 115 117 118 156 142 115 114 114 120 113 116 116 116 116 116 118 118 116 115 112 98 98 112 103 50 35 Slowest Speed 300 | 120 190 190 190 175 105 180 180 120 118 118 188 186 184 114 114 186 116 116 116 116 116 118 118 118 118 116 116 108 101 180 270 300 50 Overloaded Moves . | . . . . . . . . . . . . . . . . . . . . . . . . . . . . . . . . . . Propulsion Burnouts . | . . . . . . . . . . . . . . . . . . . . . . . . . . . . . . . . . . Robots Hopped 15 | . . . . . . . . . . . . . . . . . . . . . . . . . . . . . . . . . 15 Potential Cave-ins 44 | . . . . . . . . . . . . . . . . . . . . . . . . . . . . . . . 44 . . Cave-ins Triggered 4 | . . . . . . . . . . . . . . . . . . . . . . . . . . . . . . . 4 . . Exploration Rate (%) 51 | 4 89 81 78 82 49 52 33 96 62 98 84 7 49 38 85 45 39 6 64 62 80 15 12 16 90 43 23 61 23 96 14 32 28 Regions Visited 33 Branch Regions 23 Pre-discovered Areas 14 | . . . . . 1 . . . . 8 5 . . . . . . . . . . . . . . . . . . . . . . Known Exits Taken 16 | . . . . . . . 1 1 . 1 . 1 1 . . 1 1 1 . . . 1 1 . 1 1 1 1 1 1 . . . Unknown Exits Taken 16 | 1 1 1 1 1 1 1 . . . . 1 . . 1 1 . . . 1 1 1 . . 1 . . . . . . 1 1 . Scrap Searched 13 | . . 2 . 1 . 3 . . . . 5 . . . 2 . . . . . . . . . . . . . . . . . . Spaces Dug 240 | . . . 8 42 . . . . 4 . . 6 9 6 . 1 10 8 2 8 . 1 5 . 8 27 19 10 26 23 16 1 . Terrain Destroyed 1032 | . . 2 38 95 . . 12 37 22 . . 16 17 15 . 27 23 12 40 35 3 234 47 . 8 57 57 26 58 58 69 24 . Melee 1 | . . . . . . . . . . . . . . . . . . . . . . . . . . . . . . 1 . . . Projectile 508 | . . . . . . . . 2 1 . . 13 17 15 . 3 2 12 40 35 3 39 19 . 8 31 51 25 57 57 69 9 . AOE 520 | . . 2 38 95 . . 11 35 21 . . 3 . . . 24 21 . . . . 195 28 . . 26 6 . . . . 15 . Terrain Rammed . | . . . . . . . . . . . . . . . . . . . . . . . . . . . . . . . . . . Walls Destroyed . | . . . . . . . . . . . . . . . . . . . . . . . . . . . . . . . . . . Machines Disabled . | . . . . . . . . . . . . . . . . . . . . . . . . . . . . . . . . . . Actions | -11 -10 -10 -9 -9 -9 -8 -8 -8 -8 -8 -8 -6 -6 -6 -6 -6 -5 -5 -5 -5 -5 -5 -4 -4 -4 -3 -3 -3 -2 -2 -2 -1 -1 --------- Run | Yrd Mat Min Mat Min Exi Min Mat Sto Gar Rec Scr Fac Low Low Zio Dee Pro Fac Ext Cet Arc Hub Fac Upp War Pro Res Tes Res Qua Frg Acc Com Total 27734 | 192 611 481 968 553 156 447 619 1380 826 859 1694 356 308 259 1171 380 275 418 1647 620 427 192 595 126 1462 850 972 712 1185 4374 643 1219 757 Wait 4234 | 80 7 2 70 51 . 115 32 236 98 45 . 73 33 . 14 8 . 140 587 108 81 5 227 17 352 452 28 8 238 918 69 99 41 Move 20935 | 80 542 449 728 469 154 283 497 975 620 774 1668 226 248 244 1095 319 231 246 903 446 326 144 317 108 1016 355 800 575 818 3175 405 1026 673 Hop 15 | . . . . . . . . . . . . . . . . . . . . . . . . . . . . . . . . . 15 Pick Up 170 | 1 11 1 13 . 1 3 11 6 2 2 11 6 1 . 5 4 4 6 6 4 . 1 4 . 5 . 6 8 7 16 10 11 4 Fast Attach 139 | 7 . 2 6 1 . . . 3 . 1 . 1 . . 3 5 2 . 1 1 . 3 1 . 3 3 7 11 2 35 5 29 7 Attach 79 | . . . 2 2 . 4 4 3 2 . 3 5 . . 1 1 . 5 1 . . . 3 . . . 2 2 6 5 15 5 8 Detach 19 | . . . 2 3 . . . 1 . 1 . . . . . . . . . . . . . . 1 . 1 2 1 4 1 2 . Swap 303 | . 4 2 23 4 . 5 8 23 21 2 6 8 3 . 2 16 12 5 8 12 7 3 11 . 16 13 23 19 16 26 5 . . Drop 281 | . 4 2 24 1 1 4 14 13 9 7 6 9 1 . 8 9 8 4 7 9 6 7 4 1 8 2 18 19 8 40 9 14 5 Fire 1246 | 24 43 14 87 21 . 32 48 100 58 7 . 25 21 15 6 18 18 12 37 40 7 27 28 . 16 25 86 68 83 150 101 29 . Melee 12 | . . . . . . . . . . . . . . . . . . . . . . . . . . . . . . 1 11 . . Ram 4 | . . . . . . . . . . . . . . . . . . . . . . . . . . . . . . . 1 3 . Kick 61 | . . 9 13 1 . 1 5 2 . 7 . 3 . . . . . . 4 . . 2 . . . . 1 . 6 4 2 1 . Crush . | . . . . . . . . . . . . . . . . . . . . . . . . . . . . . . . . . . Escape Stasis 41 | . . . . . . . . 10 16 . . . . . . . . . 2 . . . . . . . . . . . 9 . 4 Rewire 150 | . . . . . . . . . . 13 . . 1 . . . . . 91 . . . . . 45 . . . . . . . . Trap . | . . . . . . . . . . . . . . . . . . . . . . . . . . . . . . . . . . Miscellaneous 45 | . . . . . . . . 8 . . . . . . 37 . . . . . . . . . . . . . . . . . . Route ------- -11/Scrapyard -10/Materials (discovered 3 exits: *Mat x2 / *Min) -10/Mines (discovered 2 exits: *Mat x2) -9/Materials (discovered 2 exits: *Mat / [*Min]) -9/Mines (discovered 3 exits: *Mat x2 / *Exi) -9/Exiles -8/Mines -8/Materials (discovered 2 exits: *Sto x2) -8/Storage (discovered 3 exits: [*Fac] / *Rec / Gar) -8/Garrison (discovered 3 exits: *Rec x3) -8/Recycling (discovered 2 exits: *Fac / *Scr) -8/Scraptown (discovered 2 exits: *Fac x2) -6/Factory (discovered 4 exits: Fac x2 / *Low x2) -6/Lower Caves -6/Lower Caves -6/Zion (discovered 2 exits: [*Dee] / *Pro) -6/Deep Caves -5/Proximity Caves -5/Factory (discovered 3 exits: Upp x2 / *Ext) -5/Extension (discovered 2 exits: *Fac / *Cet) -5/Cetus (discovered 2 exits: *Fac / [*Arc]) -5/Archives (discovered 3 exits: *Fac / [*Hub x2]) -5/Hub_04(d) (discovered 2 exits: *Fac x2) -4/Factory (discovered 3 exits: *Res / *Upp x2) -4/Upper Caves (discovered 2 exits: Upp / *War) -4/Warlord -3/Proximity Caves -3/Research (discovered 2 exits: Arm / *Tes) -3/Testing -2/Research (discovered 3 exits: Acc / *Qua x2) -2/Quarantine (discovered 3 exits: *Acc / [*Sec] / *Frg) -2/Protoforge -1/Access -1/Command History --------- Turn | Location | Event 12 | -11/Scrapyard | Discovered new exit (range 15) 245 | -11/Scrapyard | Entered Materials 303 | -10/Materials | Build established: Mutant 537 | -10/Materials | Discovered new exit (range 7) 608 | -10/Materials | Discovered new exit (range 13) 805 | -10/Materials | Discovered new exit (range 10) 1044 | -10/Materials | Entered Mines 1063 | -10/Mines | Met a Derelict bent on vengeance 1110 | -10/Mines | Assisted by bots powering up and referring to "LRC-V3" 1321 | -10/Mines | Discovered new exit (range 5) 1373 | -10/Mines | Met a Derelict who couldn't figure out how to use a Trap Extractor 1626 | -10/Mines | Discovered new exit (range 6) 1645 | -10/Mines | Entered Materials 1645 | -9/Materials | Accompanied by 3 allies 1645 | -9/Materials | Evolved 2 slots: Propulsion x1, Weapon x1 1699 | -9/Materials | Lost 3 parts (1p1n1w) 1895 | -9/Materials | Discovered new exit (range 3) 2053 | -9/Materials | Build established: Scavenger-Gunner 2343 | -9/Materials | Discovered new exit (range 12) 3197 | -9/Materials | Entered Mines 3297 | -9/Mines | Assembled infested the area 3588 | -9/Mines | Discovered new exit (range 14) 3618 | -9/Mines | Learned location of 1 exit from Lower Caves 3744 | -9/Mines | Deemed a non-threat by the Exiles lab entrance 3744 | -9/Mines | Discovered new exit (range 5) 3919 | -9/Mines | Discovered new exit (range 14) 4137 | -9/Mines | Entered Exiles 4164 | -9/Exiles | Met 8R-AWN 4181 | -9/Exiles | Met EX-HEX 4221 | -9/Exiles | Met EX-DEC 4227 | -9/Exiles | Learned location of Zion (-6) 4289 | -9/Exiles | Discovered new exit (range 14) 4301 | -9/Exiles | Entered Mines 4673 | -8/Mines | Build established: Scavenger-Tank 5029 | -8/Mines | Discovered new exit (range 8) 5040 | -8/Mines | Entered Materials 5040 | -8/Materials | Evolved 2 slots: Propulsion x1, Utility x1 5041 | -8/Materials | Identified exit to Storage 5503 | -8/Materials | Discovered exit to Storage (range 12) 5820 | -8/Materials | Entered Storage 5917 | -8/Storage | Repaired Gauss Rifle 6090 | -8/Storage | Met a pair of Derelict thieves 6180 | -8/Storage | Used back door to open Recycling access 6180 | -8/Storage | Discovered new exit (range 5) 6644 | -8/Storage | Build established: Tank 6775 | -8/Storage | Garrison activated, responded to threat 7091 | -8/Storage | Discovered new exit (range 6) 7543 | -8/Storage | Identified exit to Garrison 7543 | -8/Storage | Entered Garrison 7569 | -8/Garrison | Triggered checkpoint 7623 | -8/Garrison | Garrison Relay disabled 7665 | -8/Garrison | Build established: Scavenger-Tank 7669 | -8/Garrison | Triggered checkpoint 7866 | -8/Garrison | Destroyed 8 combat bots 8026 | -8/Garrison | Discovered new exit (range 10) 8087 | -8/Garrison | Attempted to access garrison exit controls, blocked by remote lockdown 8155 | -8/Garrison | Triggered checkpoint 8176 | -8/Garrison | Build established: Scavenger-Gunner 8216 | -8/Garrison | Garrison Relay disabled 8286 | -8/Garrison | Discovered new exit (range 9) 8297 | -8/Garrison | Attempted to access garrison exit controls, blocked by remote lockdown 8347 | -8/Garrison | Triggered checkpoint 8387 | -8/Garrison | Discovered new exit (range 10) 8413 | -8/Garrison | Triggered checkpoint 8514 | -8/Garrison | Garrison Relay disabled 8530 | -8/Garrison | Rescued a captive Derelict 8531 | -8/Garrison | Rescued a captive Derelict 8596 | -8/Garrison | Entered Recycling 8596 | -8/Recycling | Accompanied by 2 allies 9140 | -8/Recycling | Discovered new exit (range 16) 9511 | -8/Recycling | Identified exit to Scraptown 9569 | -8/Recycling | Scanned before Scraplab entrance 9587 | -8/Recycling | Entered Scraplab 9597 | -8/Recycling | Learned Factory terminal intel 9605 | -8/Recycling | Learned 4 Lower Caves zone layouts 9606 | -8/Recycling | Entered Scraptown 9606 | -8/Scraptown | Accompanied by 1 ally 9609 | -8/Scraptown | System corruption cleaned by C-Scrubber 9767 | -8/Scraptown | Visited UFD Registry 9767 | -8/Scraptown | Registered with UFD as "Technobox" 9795 | -8/Scraptown | Visited Junk Repository 9827 | -8/Scraptown | Visited Junk Repository 9885 | -8/Scraptown | Build established: Mutant 9891 | -8/Scraptown | Visited Sword Containment 9911 | -8/Scraptown | Visited Curators Association 9931 | -8/Scraptown | Visited Research Penetration Think Tank 9968 | -8/Scraptown | Visited Cartography Club 10103 | -8/Scraptown | Found Deep Structural Scanner 10115 | -8/Scraptown | Learned location of Proximity Caves (-3) 10115 | -8/Scraptown | Learned location of Quarantine (-2) 10115 | -8/Scraptown | Learned 8 Materials zone layouts 10115 | -8/Scraptown | Learned 8 Research zone layouts 10115 | -8/Scraptown | Learned 16 Factory zone layouts 10115 | -8/Scraptown | Learned 8 Access zone layouts 10115 | -8/Scraptown | Learned 4 Recycling zone layouts 10115 | -8/Scraptown | Learned 8 Upper Caves zone layouts 10115 | -8/Scraptown | Learned 20 Proximity Caves zone layouts 10115 | -8/Scraptown | Learned 4 Hub_04(d) zone layouts 10115 | -8/Scraptown | Learned 4 Armory zone layouts 10115 | -8/Scraptown | Learned Research emergency access door positions 10115 | -8/Scraptown | Learned location of 2 exits from Research 10115 | -8/Scraptown | Learned location of 2 exits from Upper Caves 10115 | -8/Scraptown | Learned location of 3 exits from Proximity Caves 10149 | -8/Scraptown | Visited Botcube Research 10169 | -8/Scraptown | Visited Science Guys 10213 | -8/Scraptown | Visited Analyses Database 10795 | -8/Scraptown | Build established: Gunner 11460 | -8/Scraptown | Discovered new exit (range 13) 11646 | -8/Scraptown | Visited Supply Room 11690 | -8/Scraptown | Visited Awakened 11720 | -8/Scraptown | Visited The Evicted 11750 | -8/Scraptown | Visited TADAMA 11977 | -8/Scraptown | Discovered new exit (range 3) 12137 | -8/Scraptown | Met Optimus 12137 | -8/Scraptown | Accepted into 0bPrime 12239 | -8/Scraptown | Entered Factory 12239 | -6/Factory | Accompanied by 1 ally 12239 | -6/Factory | Evolved 4 slots: Propulsion x1, Utility x3 12240 | -6/Factory | Identified exit to Lower Caves 12241 | -6/Factory | Identified exit to Factory 12242 | -6/Factory | Loaded intel: 26 terminal locations 12406 | -6/Factory | Found Hvy. Reflective Plating 12676 | -6/Factory | Build established: Scavenger-Gunner 12726 | -6/Factory | Entered Lower Caves 12727 | -6/Lower Caves | Identified exit to Lower Caves 12963 | -6/Lower Caves | Encountered a Warlord checkpoint 13020 | -6/Lower Caves | Learned Factory emergency access door positions 13049 | -6/Lower Caves | Murdered Warlord Statue 13094 | -6/Lower Caves | Entered another Lower Caves area 13307 | -6/Lower Caves | Discovered new exit (range 9) 13403 | -6/Lower Caves | Entered Zion 13404 | -6/Zion | Identified exit to Proximity Caves 13759 | -6/Zion | Visited the Megawrench Repair Shop 13880 | -6/Zion | Received a hallucinogenic algorithm 13966 | -6/Zion | Given A8's code to call for help 13988 | -6/Zion | Learned Factory emergency access door positions 14026 | -6/Zion | Learned Factory trap positions 14148 | -6/Zion | Found Prototype Device 14148 | -6/Zion | Identified Bomb Factory No. 2 14498 | -6/Zion | Discovered new exit (range 7) 14531 | -6/Zion | Saw the warning signs outside the Deep Caves entrance 14587 | -6/Zion | Enhanced Grunt warped into view, answering call for help 14589 | -6/Zion | Enhanced Grunt warped into view, answering call for help 14629 | -6/Zion | Attached CPS modules to Enhanced Grunt. 14631 | -6/Zion | Attached CPS modules to Enhanced Grunt. 14734 | -6/Zion | Megawrench repaired 11 parts 14806 | -6/Zion | Entered Deep Caves 14806 | -6/Deep Caves | Accompanied by 2 allies 14807 | -6/Deep Caves | Identified exit to Proximity Caves 14900 | -6/Deep Caves | Attacked by Z-Imprinter 14912 | -6/Deep Caves | Allies destroyed Z-Imprinter 14970 | -6/Deep Caves | Found Prototype Device 14970 | -6/Deep Caves | Identified Zio. Metafield Generator 15033 | -6/Deep Caves | Z-Facility disabled 15199 | -6/Deep Caves | Found Prototype Protection 15199 | -6/Deep Caves | Identified Zio. Weapon Casing 15289 | -6/Deep Caves | Entered Proximity Caves 15289 | -5/Proximity Caves | Accompanied by 2 allies 15292 | -5/Proximity Caves | Spotter reported a threat 15378 | -5/Proximity Caves | Spotted B-75 Beast 15387 | -5/Proximity Caves | Attracted the attention of an 0b10 checkpoint 15396 | -5/Proximity Caves | Allies destroyed B-75 Beast 15614 | -5/Proximity Caves | Found Prototype Device 15614 | -5/Proximity Caves | Identified Exp. Thermal Shield 15631 | -5/Proximity Caves | Entered Factory 15631 | -5/Factory | Evolved 2 slots: Power x1, Utility x1 15632 | -5/Factory | Identified exit to Upper Caves 15632 | -5/Factory | Identified exit to Extension 15633 | -5/Factory | Loaded intel: 70 trap records 15850 | -5/Factory | Fabricated Railgun? 15923 | -5/Factory | Fabricated Railgun? 15990 | -5/Factory | Fabricated Imp. Transmission Jammer? 16102 | -5/Factory | Entered Extension 16589 | -5/Extension | Rescued A7 16606 | -5/Extension | Rescued a captive Derelict 16641 | -5/Extension | Scrapoids reinforcements arrived? 16655 | -5/Extension | Rescued a captive Derelict 16656 | -5/Extension | Rescued a captive Derelict 16677 | -5/Extension | Rescued a captive Derelict 16678 | -5/Extension | Rescued a captive Derelict 16824 | -5/Extension | Rescued a captive Derelict 16826 | -5/Extension | Rescued a captive Derelict 16863 | -5/Extension | Scrapoids reinforcements arrived? 17010 | -5/Extension | Build established: Commander-Gunner 17661 | -5/Extension | Spotted B-75 Beast 17661 | -5/Extension | Allies destroyed B-75 Beast 17674 | -5/Extension | Spotted B-75 Beast 17682 | -5/Extension | Allies destroyed B-75 Beast 17806 | -5/Extension | Discovered new exit (range 16) 17806 | -5/Extension | Discovered new exit (range 16) 17971 | -5/Extension | Entered Cetus 17971 | -5/Cetus | Accompanied by 27 allies (A7) 17976 | -5/Cetus | Acquired a Cetus Manufacturing Module code from A7 18005 | -5/Cetus | Spotted Cetus Guard 18005 | -5/Cetus | Spotted Cetus Guard 18006 | -5/Cetus | Spotted Cetus Guard 18008 | -5/Cetus | Spotted Cetus Guard 18019 | -5/Cetus | Allies destroyed Cetus Guard 18019 | -5/Cetus | Allies destroyed Cetus Guard 18019 | -5/Cetus | Allies destroyed Cetus Guard 18020 | -5/Cetus | Destroyed Cetus Guard 18119 | -5/Cetus | Started Cetus Manufacturing Module 18144 | -5/Cetus | Manufactured an Enhanced Grunt 18169 | -5/Cetus | Manufactured an Enhanced Grunt 18194 | -5/Cetus | Manufactured an Enhanced Grunt 18201 | -5/Cetus | Discovered new exit (range 15) 18219 | -5/Cetus | Manufactured an Enhanced Grunt 18244 | -5/Cetus | Manufactured an Enhanced Grunt 18255 | -5/Cetus | Murdered A7 18263 | -5/Cetus | Found Prototype Protection 18263 | -5/Cetus | Identified Med. Regenerative Plating 18269 | -5/Cetus | Extracted ID and sensor layout for unrecognized location from A7's data core 18422 | -5/Cetus | Spotted Cetus Guard 18423 | -5/Cetus | Spotted Cetus Guard 18426 | -5/Cetus | Spotted Cetus Guard 18426 | -5/Cetus | Spotted Cetus Guard 18430 | -5/Cetus | Allies destroyed Cetus Guard 18436 | -5/Cetus | Destroyed Cetus Guard 18436 | -5/Cetus | Destroyed Cetus Guard 18436 | -5/Cetus | Allies destroyed Cetus Guard 18445 | -5/Cetus | Discovered new exit (range 15) 18451 | -5/Cetus | Met Revision 17 18721 | -5/Cetus | Security sweep announced 18741 | -5/Cetus | Entered Archives 18741 | -5/Archives | Accompanied by 23 allies 18781 | -5/Archives | Discovered new exit (range 15) 18815 | -5/Archives | Discovered new exit (range 16) 18864 | -5/Archives | Discovered new exit (range 16) 19234 | -5/Archives | Entered Hub_04(d) 19234 | -5/Hub_04(d) | Accompanied by 20 allies 19235 | -5/Hub_04(d) | Identified exit to Factory 19280 | -5/Hub_04(d) | Lost 6 allies 19344 | -5/Hub_04(d) | Network Hub disabled 19395 | -5/Hub_04(d) | Murdered 3 allies 19441 | -5/Hub_04(d) | Lost 4 allies 19510 | -5/Hub_04(d) | Entered Factory 19510 | -4/Factory | Accompanied by 3 allies 19510 | -4/Factory | Evolved 2 slots: Propulsion x1, Utility x1 19656 | -4/Factory | Identified exit to Upper Caves 19696 | -4/Factory | Build established: Scavenger-Gunner 19762 | -4/Factory | Discovered new exit (range 5) 20218 | -4/Factory | Entered Upper Caves 20219 | -4/Upper Caves | Identified exit to Upper Caves 20341 | -4/Upper Caves | A Derelict revealed a hidden shortcut to "reach the base" 20363 | -4/Upper Caves | Entered Warlord 20364 | -4/Warlord | Identified exit to Proximity Caves 20405 | -4/Warlord | System corruption cleaned by Quarantine Array 20688 | -4/Warlord | Received a Watcher feed algorithm from an ecstatic Tinkerer 20933 | -4/Warlord | Found Prototype Device 20933 | -4/Warlord | Identified Exp. Focal Shield 20942 | -4/Warlord | Found Prototype Processor 20942 | -4/Warlord | Identified Exp. Target Analyzer 20946 | -4/Warlord | Found Prototype Hackware 20946 | -4/Warlord | Identified System Mapper 20961 | -4/Warlord | Found Prototype Reactor 21113 | -4/Warlord | Warlord's base attacked by MAIN.C 21275 | -4/Warlord | Found Prototype Energy Gun 21275 | -4/Warlord | Identified Vortex Rifle 21463 | -4/Warlord | Warlord forces counterattacked 21464 | -4/Warlord | Rebuked by Warlord 21788 | -4/Warlord | Warlord base infiltrated, sounded retreat 21878 | -4/Warlord | Lost 3 allies 22013 | -4/Warlord | Entered Proximity Caves 22013 | -3/Proximity Caves | Accompanied by 3 allies 22014 | -3/Proximity Caves | Identified exit to Research 22018 | -3/Proximity Caves | Spotted B-86 Titan 22027 | -3/Proximity Caves | Allies destroyed B-86 Titan 22445 | -3/Proximity Caves | Attracted the attention of an 0b10 checkpoint 22977 | -3/Proximity Caves | Entered Research 22977 | -3/Research | Evolved 2 slots: Power x1, Utility x1 22978 | -3/Research | Identified exit to Testing 22978 | -3/Research | Identified exit to Armory 22978 | -3/Research | Identified Vortex Chain Reactor 23177 | -3/Research | Revision forces began assault on 0b10 23677 | -3/Research | Research terminal network offline 23688 | -3/Research | Found Quantum Capacitor 23870 | -3/Research | Spotted Striker 23878 | -3/Research | Destroyed Striker 24050 | -3/Research | Spotted Striker 24064 | -3/Research | Destroyed Striker 24065 | -3/Research | Spotted Executioner 24157 | -3/Research | Destroyed Executioner 24169 | -3/Research | Found Prototype Processor 24169 | -3/Research | Identified Exp. Core Analyzer 24174 | -3/Research | Found Prototype Device 24174 | -3/Research | Identified Adv. Kinecellerator 24189 | -3/Research | Entered Testing 24284 | -3/Testing | Found Prototype Protection 24404 | -3/Testing | Central database locked down 24440 | -3/Testing | Fabricated Enh. Hardcell Cannon? 24467 | -3/Testing | Found Exp. Signal Interpreter 24549 | -3/Testing | Found Prototype Device 24549 | -3/Testing | Identified AEGIS Remote Shield 24740 | -3/Testing | Identified exit to Research 24746 | -3/Testing | Identified Hvy. Regenerative Plating 24851 | -3/Testing | Destroyed 13 combat bots 24885 | -3/Testing | Found Prototype Device 24885 | -3/Testing | Identified 2N-1CE's Frost Array 24922 | -3/Testing | Found Prototype Launcher 24922 | -3/Testing | Identified Com. Tesla Bomb Launcher 25000 | -3/Testing | Entered Research 25000 | -2/Research | Evolved 2 slots: Utility x2 25602 | -2/Research | Build established: Scavenger-Skirmisher 25803 | -2/Research | Found Prototype Device 25803 | -2/Research | Identified Exp. Sensor Array 25844 | -2/Research | Identified exit to Quarantine 25863 | -2/Research | Discovered new exit (range 15) 26078 | -2/Research | Spotted B-90 Cyclops 26198 | -2/Research | Build established: Scavenger-Gunner 26303 | -2/Research | Entered Quarantine 26497 | -2/Quarantine | Found Alien Artifact 26645 | -2/Quarantine | Repaired Enh. Biometal Leg 26707 | -2/Quarantine | Found Alien Slashing Weapon 26790 | -2/Quarantine | Build established: Hacker-Skirmisher 26807 | -2/Quarantine | Cryocooling Duct disabled 26809 | -2/Quarantine | Cryocooling Duct disabled 26822 | -2/Quarantine | Ambient heat levels rising (+20) 26822 | -2/Quarantine | Non-combat units ordered to evacuate 26824 | -2/Quarantine | Ambient heat levels rising (+20) 26824 | -2/Quarantine | Combat units ordered to evacuate 26924 | -2/Quarantine | Quarantine Guard activated 27009 | -2/Quarantine | Spotted Quarantine Guard 27062 | -2/Quarantine | Spotted Quarantine Guard 27085 | -2/Quarantine | Destroyed Quarantine Guard 27143 | -2/Quarantine | Build established: Hacker-Gunner 27189 | -2/Quarantine | System corruption reached 10% 27252 | -2/Quarantine | Found Alien Artifact 27252 | -2/Quarantine | Identified Core Reset Matrix 27252 | -2/Quarantine | Identified Subatomic Replicator 27252 | -2/Quarantine | Identified Sigix Broadsword 27252 | -2/Quarantine | Used Core Reset Matrix 27256 | -2/Quarantine | Detected hypermatrix surge 27256 | -2/Quarantine | Sensed 7 artifacts in vicinity 27299 | -2/Quarantine | Found Phase Armor 27387 | -2/Quarantine | Spotted Fortress 27703 | -2/Quarantine | Destroyed Fortress 27740 | -2/Quarantine | Found Unknown Protection 27740 | -2/Quarantine | Identified Hvy. Insulated Plating 27751 | -2/Quarantine | Found Prototype Device 27751 | -2/Quarantine | Identified Thermal Barrier 27836 | -2/Quarantine | Found Terrabomb 28047 | -2/Quarantine | Spotted Quarantine Guard 28090 | -2/Quarantine | Destroyed Quarantine Guard 28156 | -2/Quarantine | Repaired Biometal Leg 28354 | -2/Quarantine | Build established: Hacker-Mutant 28482 | -2/Quarantine | Destroyed Quarantine Guard 28571 | -2/Quarantine | Spotted Quarantine Guard 28631 | -2/Quarantine | Destroyed Quarantine Guard 28755 | -2/Quarantine | Spotted Quarantine Guard 28758 | -2/Quarantine | Destroyed Quarantine Guard 28918 | -2/Quarantine | Spotted Quarantine Guard 28931 | -2/Quarantine | Destroyed Quarantine Guard 29235 | -2/Quarantine | Cryocooling Duct disabled 29237 | -2/Quarantine | Cryocooling Duct disabled 29250 | -2/Quarantine | Ambient heat levels rising (+20) 29252 | -2/Quarantine | Ambient heat levels rising (+20) 29449 | -2/Quarantine | Central database locked down 29680 | -2/Quarantine | Discovered new exit (range 13) 29680 | -2/Quarantine | Spotted Quarantine Guard 29680 | -2/Quarantine | Spotted Quarantine Guard 30268 | -2/Quarantine | Repaired Centrium Leg 30577 | -2/Quarantine | Destroyed Quarantine Guard 30577 | -2/Quarantine | Destroyed Quarantine Guard 30588 | -2/Quarantine | Discovered new exit (range 17) 30591 | -2/Quarantine | Discovered new exit (range 14) 30608 | -2/Quarantine | Identified exit to Protoforge 30861 | -2/Quarantine | Build established: Hacker-Assassin 31241 | -2/Quarantine | Entered Protoforge 31242 | -2/Protoforge | Sensed 2 artifacts in vicinity 31290 | -2/Protoforge | Superfortress began startup sequence 31401 | -2/Protoforge | Crushed by falling debris 31402 | -2/Protoforge | Discovered new exit (range 13) 31628 | -2/Protoforge | Found Prototype Ballistic Gun 31628 | -2/Protoforge | Identified Cep. XC Strikerail 31632 | -2/Protoforge | Found Cep. XC Strikerail 31749 | -2/Protoforge | Destroyed 9 combat bots 31749 | -2/Protoforge | Found Corrupted Cep. XC Strikerail 31752 | -2/Protoforge | Found Corrupted Cep. XC Strikerail 31754 | -2/Protoforge | Found Corrupted Cep. XC Strikerail 31758 | -2/Protoforge | Lost 5 parts (2n3u) 31758 | -2/Protoforge | Used Terrabomb 31758 | -2/Protoforge | Additional patrols dispatched to research labs 31765 | -2/Protoforge | Crushed by falling debris 31770 | -2/Protoforge | Crushed by falling debris 31802 | -2/Protoforge | Found Prototype Device 31820 | -2/Protoforge | Spotted Decapitator 31854 | -2/Protoforge | Spotted V679-o 31856 | -2/Protoforge | Spotted V347-l 31865 | -2/Protoforge | Garrison activated, responded to threat 31876 | -2/Protoforge | System corruption reached 30% 31929 | -2/Protoforge | Found Prototype Device 31929 | -2/Protoforge | Identified Exp. Trap Extractor 31945 | -2/Protoforge | Crushed by falling debris 31957 | -2/Protoforge | Spotted Decapitator 31957 | -2/Protoforge | Spotted Decapitator 31970 | -2/Protoforge | Destroyed Decapitator 31972 | -2/Protoforge | Destroyed Decapitator 32005 | -2/Protoforge | Released all parts (11) 32007 | -2/Protoforge | Core integrity fell below 50% 32016 | -2/Protoforge | Spotted Hotshot 32017 | -2/Protoforge | Spotted Hotshot 32033 | -2/Protoforge | Lost 10 parts (3p1n5u1w) 32044 | -2/Protoforge | Core integrity fell below 20% 32047 | -2/Protoforge | Entered Access 32047 | -1/Access | Evolved 2 slots: Propulsion x2 32321 | -1/Access | Build established: Mutant 32572 | -1/Access | Spotted B-99 Colossus 32640 | -1/Access | Spotted B-99 Colossus 32661 | -1/Access | Released all parts (13) 32667 | -1/Access | System corruption reached 10% 32675 | -1/Access | Destroyed 8 combat bots 32703 | -1/Access | Lost 8 parts (1p4n3u) 32775 | -1/Access | Core integrity fell below 50% 32796 | -1/Access | Discovered new exit (range 7) 32797 | -1/Access | Search patrols dispatched 32799 | -1/Access | Entered Command 32905 | -1/Command | Hacking Suite fried by hacking feedback 32949 | -1/Command | Spotted B-99 Colossus 33085 | -1/Command | Emitted hypermatrix ping 33090 | -1/Command | Assembled emerged from beneath the floor 33117 | -1/Command | Self-destructed Last Messages --------------- 33090_ Field Propulsion Drive destroyed. 33090_ Adv. Point Defense System destroyed. 33092_ Identified Adv. Medium Treads. 33092_ Penetrated by Slug. 33092_ Slug penetrates G-73 Enforcer. 33093_ Identified Imp. Heavy Siege Treads. 33094_ System corrupted: Component data lost. 33094_ Slug penetrates Wall. 33094_ Penetrated by Slug. 33095_ Slug penetrates S-43 Plague. 33095_ S-43 Plague destroyed. 33095_ P-80 Master destroyed. 33097_ Penetrated by Slug. 33097_ Slug penetrates H-88 Terminator. 33097_ Penetrated by Slug. 33104_ Slug penetrates H-88 Terminator. 33107_ Acquired Unknown Treads. 33107_ Identified Hvy. Siege Treads. 33109_ Slug penetrates Wall. 33109_ Slug penetrates Door. Map ----- +----------------------------------------------------+ | ???????????? ! ## #?#[## #? | | ???????????? ## ###%## #? | | ????????????? ## ^ =## "" | | ???????????? ## "" | | ???????????? ^ # "? | | ???????????? + """"????? | | ??????????""? # """" ???? | | ?????????? ^ # """" ???? | | ?????????# [[[ # """" ???? | | ?????????# ? [[[ ! # ??? | | ?????????# ??# #####[[[ ![ # #? | | ?????????# ??# #???# ##############? | | ?????????# ###/##### ##########????? | | ?????????# #= ## ## """???? | | ?????????# # ## "" ##] ! ""????? | | ?????????# # ] ## """ ## ???? | | ?????????# # ]! ## "R ## ???? | | ?????????# # ## """ ## "" ????? | | ?????????# # ## """ ##! """" """? | | ?????????# ##/###### # """" """" | | ?????????# # "" "" | | ?????????# + * | | ???????###+#### ########h###### # = | | ???????# # # #/#######+###############? | | ???????# # # # ! == #??????? | | ???????# +!%# #@ = #??????? | | ???????# # =/ + =! #??????? | | ???????# ## #"" # #??????? | | ???????# * ??# #"" # #??????? | | ???????# ??# #"" # #??????? | | ???????# ???# #T # #??????? | | ???????# ???# #"" ###################??????? | | ???????# ????# #"" #????????????????????????? | | ???????# ????# #"" #????????????????????????? | | ???????#[ ?????# # #????????????????????????? | | ???????# ?????# # #????????????????????????? | | ???????# ??????# #?# ####????????????????????????? | | ???????##??#####+##########??????????????????????? | | ???????????# #??????????????????????? | | ???????????# #??????????????????????? | | ???????????# [ #??????????????????????? | | ???????????# #??????????????????????? | | ???????????# #??????????????????????? | | ???????????# #??????????????????????? | | ???????????########/#+#####??????????????????????? | | ????????????????# #??????????????????????????? | | ????????????????# #??????????????????????????? | | ????????????????# #??????????????????????????? | | ????????????????# #???????????#########??????? | | ????????????????# ##########??# ! #??????? | +----------------------------------------------------+ Best States ------------- Heat Dissipation 168 Energy Generation 75 Energy Capacity 1165 Matter Stores 300 Matter Capacity 500 Sight Range 16 Robot Scan Range 16 Terrain Scan Range 24 Terrain Scan Density 210 Jamming Range 16 Cloak Strength 2 Armor Coverage 825 Resistance: KI 30 Resistance: TH 50 Weapon Shielding 100 Point Defense Rating 240 Phase Shifting 15 Evasion (%) 70 Targeting Accuracy 8 Core Analysis 11 Recoil Reduction 2 Salvage Targeting 3 Offensive Hacking 20 Defensive Hacking 24 Authchip Count 3 Trap Extractor Capacity 12 Item Schematics ----------------- Exp. Transmission Jammer | -2/Quarantine | Archive Point Singularity Launcher | -2/Quarantine | Archive Gravity Neutralizer | -2/Quarantine | Archive Imp. Particle Accelerator | -2/Quarantine | Archive Robot Schematics ------------------ K-01 Serf | -2/Quarantine | Archive Fabricated ------------ Railgun | x2 | -5/Factory | Authchip Railgun | x2 | -5/Factory | Authchip Imp. Transmission Jammer | x2 | -5/Factory | Authchip Enh. Hardcell Cannon | x2 | -3/Testing | Preloaded Repaired ---------- Gauss Rifle | 11% | -8/Storage Enh. Biometal Leg | 33% | -2/Quarantine Biometal Leg | 15% | -2/Quarantine Centrium Leg | 61% | -2/Quarantine Studied --------- Hvy. Shield Leg | -2/Quarantine | Hacked Imp. Thunder Leg | -2/Quarantine | Hacked Alien Tech Used ----------------- Core Reset Matrix Phase Armor Sigix Broadsword Terrabomb Achievements -------------- None Challenges ------------ None Game ------ Seed SuperquantumMicrowarpBattery Manual? 0 Play Time 04:06:50 Cumulative 282.7 hours Start 2025.12.27 @ 16:45:20 End 2025.12.30 @ 18:10:36 Sessions 27 Manual Loads 0 Difficulty Rogue Special Mode None Game No. 161 Rogue 161 Adventurer 0 Explorer 0 Win Type - Total 35 Types 17/1/11/1/0/1/2/1/0/1 Lore% 85 Gallery% 74 Achievement% 61 Wizard Run 0 Options --------- Layout 1 ASCII 0 Keyboard 0 Movement Arrows Keybinds 0 Fullscreen 2 Font 24/Tamsyn Map View 50x35 Zoom Use 0% Tactical HUD 1 Map Filters NONE Filters NONE Steam 1 RUN: 420477d3-183d-4712-845a-4767df2b8faa